Cogmind - Beta 12 @@@ ROGUE MODE // 2023.03.07 @ 17:44:55 Player: ktur Result: Destroyed by Executioner with Helical Railgun Performance ------------- Evolutions (9) 4500 Regions Visited (33) 6600 Robots Destroyed (617) 3085 Value Destroyed (35092) 35092 Prototype IDs (79) 1580 Alien Tech Used (13) 2600 Bonus (19717) 19717 TOTAL SCORE: 73174 Bonus ------- Triggered High Security 500 High Alert Combat Kills 8500 Follower Combat Kills 7714 Entered Garrisons 1600 Used RIF Installer 4500 Network Hubs Disabled 400 Built Enhanced Grunts 300 Met R17 at Cetus 500 Met R17 at Research 2000 Destroyed MAIN.C Guards 500 Friendly Fire -6797 Cogmind --------- Core Integrity 0/1600 Matter 300/300 Energy 232/600 System Corruption 0% Temperature Cool (0) Movement Hovering (151) Ox1 Location -1/Command Parts ------- > --- POWER (2) -------- (None) > --- PROPULSION (6) --- Combat Linear Gravjet Combat Linear Gravjet Combat Linear Gravjet Combat Linear Gravjet > --- UTILITY (15) ----- Huge Storage Unit Advanced Energy Well Graphene Brace Relay Coupler [C] (2) Relay Coupler [Proto] (9) > --- WEAPON (2) ------- (None) > --- INVENTORY (25) --- Advanced Energy Well (500) Experimental Energy Well Improved Matter Compressor (300) Antimissile System High-powered Transdimensional Reconstructor Integrity Redistributor Subatomic Replicator Compact HERF Cannon Enhanced Nova Cannon Enhanced Nova Cannon Cooled Nova Cannon Linear Accelerator Advanced Datajack Advanced Remote Datajack Improved Plasma Cutter Peak State ------------ > --- POWER ------------ Reinforced Quantum Reactor Improved Quantum Reactor > --- PROPULSION ------- Enhanced Biometal Leg Centrium Leg Centrium Leg Centrium Leg Centrium Leg Centrium Leg > --- UTILITY ---------- Huge Storage Unit Advanced Energy Well Experimental Targeting Computer Core Analyzer Advanced Weapon Cycler Centrium Medium Armor Plating Experimental Thermal Shield Experimental EM Disruption Field Advanced Force Field Relay Coupler [C] Relay Coupler [C] Relay Coupler [C] Relay Coupler [C] Relay Coupler [Sentry] Relay Coupler [Behemoth] > --- WEAPON ----------- Core Cannon > --- INVENTORY -------- Combat Linear Gravjet Combat Linear Gravjet Combat Linear Gravjet Combat Linear Gravjet Experimental Power Amplifier Advanced Energy Well Improved Matter Compressor Graphene Brace Antimissile System Relay Coupler [Proto] Relay Coupler [Proto] Relay Coupler [Proto] Relay Coupler [Proto] Relay Coupler [Proto] High-powered Transdimensional Reconstructor Integrity Redistributor Subatomic Replicator EMDS Enhanced Nova Cannon Enhanced Nova Cannon Linear Accelerator Advanced Datajack Advanced Remote Datajack Improved Plasma Cutter [Rating: 227] Favorites ----------- Power Improved Quantum Reactor Engine Light Deuterium Engine Power Core Light Nuclear Core Reactor Improved Quantum Reactor Propulsion Enhanced Biometal Leg Treads Light Treads Leg Enhanced Biometal Leg Hover Unit Aerolev Unit Flight Unit Improved VTOL Module Utility Huge Storage Unit Device Advanced Force Field Storage Huge Storage Unit Processor Core Analyzer Hackware Relay Coupler [C] Protection Centrium Medium Armor Plating Artifact Phase Redirector Weapon Enhanced Nova Cannon Energy Gun Advanced Beam Rifle Energy Cannon Enhanced Nova Cannon Ballistic Gun Enhanced Autogun Ballistic Cannon Heavy Gauss Cannon Launcher Missile Launcher Special Weapon Improved Remote Datajack Impact Weapon Heavy Hammer Slashing Weapon Chainsword Special Melee Weapon Datajack Build | -11 -10 -10 -9 -8 -8 -8 -7 -7 -7 -7 -6 -6 -6 -6 -5 -5 -5 -5 -4 -4 -4 -4 -4 -3 -3 -3 -3 -2 -2 -1 -1 -1 -1 ------- Run | Jun Mat Min Mat Mat Gar Mat Fac Gar Fac Gar Fac Was Fac Gar Fac Was Fac Gar Fac Ext Cet Arc Hub Res Qua Sec Gar Res Gar Acc Gar Acc Com Slots Evolved 18 | . . . 2 2 . . 2 . . . 2 . . . 2 . . . 2 . . . . 2 . . . 2 . 2 . . . Power 1 | . . . . . . . . . . . . . . . 1 . . . . . . . . . . . . . . . . . . Propulsion 4 | . . . 1 1 . . . . . . 1 . . . 1 . . . . . . . . . . . . . . . . . . Utility 13 | . . . 1 1 . . 2 . . . 1 . . . . . . . 2 . . . . 2 . . . 2 . 2 . . . Weapon . | . . . . . . . . . . . . . . . . . . . . . . . . . . . . . . . . . . Parts Attached 762 | 6 28 6 20 24 26 25 11 55 5 22 26 . 6 14 11 1 7 3 19 16 12 28 44 17 56 116 23 7 18 3 17 30 60 Power 48 | 1 . 2 2 1 4 1 1 5 1 1 1 . 1 . 3 . . . 1 2 2 1 7 . 2 2 5 . . . . 2 . Engine 11 | 1 . 2 2 1 . 1 . 2 . . . . 1 . 1 . . . . . . . . . . . . . . . . . . Core 14 | . . . . . 4 . 1 3 1 1 1 . . . 2 . . . . 1 . . . . . . . . . . . . . Reactor 23 | . . . . . . . . . . . . . . . . . . . 1 1 2 1 7 . 2 2 5 . . . . 2 . Propulsion 129 | 2 2 2 7 8 8 6 4 20 . 6 7 . . 3 2 1 . . 4 1 2 1 7 . 4 8 3 . 2 . 2 11 6 Treads 48 | 2 2 2 7 7 8 5 3 5 . . . . . . . . . . 3 1 2 1 . . . . . . . . . . . Leg 55 | . . . . . . . . 11 . 6 . . . . . . . . . . . . 7 . 4 8 3 . 2 . 2 11 1 Wheel . | . . . . . . . . . . . . . . . . . . . . . . . . . . . . . . . . . . Hover 25 | . . . . . . 1 1 4 . . 7 . . 3 2 1 . . 1 . . . . . . . . . . . . . 5 Flight 1 | . . . . 1 . . . . . . . . . . . . . . . . . . . . . . . . . . . . . Utility 289 | 1 8 1 5 5 2 6 2 12 1 5 10 . 5 3 4 . 3 1 12 8 5 17 18 11 31 46 8 4 9 1 11 10 24 Device 135 | . 7 1 2 . . 4 2 3 . 2 4 . . 1 1 . . . 5 6 3 11 10 3 18 30 2 . 3 . 5 4 8 Storage 18 | 1 1 . 1 . . . . . . . 1 . 2 . . . . . 1 . . 1 2 . 1 1 2 . 2 . . 1 1 Processor 11 | . . . . 1 1 . . 1 . . 2 . . . 1 . . . 1 . . 1 . . 2 . . . 1 . . . . Hackware 43 | . . . . . 1 1 . 5 1 1 1 . 1 1 . . 1 1 2 . . . 1 4 1 3 2 3 . 1 6 1 5 Protection 79 | . . . 2 4 . 1 . 3 . 2 2 . 2 1 2 . 2 . 3 2 2 4 5 4 8 10 2 1 3 . . 4 10 Artifact 3 | . . . . . . . . . . . . . . . . . . . . . . . . . 1 2 . . . . . . . Weapon 296 | 2 18 1 6 10 12 12 4 18 3 10 8 . . 8 2 . 4 2 2 5 3 9 12 6 19 60 7 3 7 2 4 7 30 Energy Gun 20 | 1 1 . . 5 4 3 . 3 . . 1 . . . . . 1 . . . . . . . . . . . . . . . 1 Energy Cannon 94 | . . . . . . . . . . . . . . . . . . . . . 1 1 2 4 11 35 6 2 6 1 3 5 17 Ballistic Gun 57 | 1 6 . 5 5 5 5 2 10 2 5 1 . . . . . . . . . . 3 7 . . . . . . . . . . Ballistic Cannon 55 | . 7 1 . . . . . . . 2 3 . . 1 1 . . 1 1 1 . 3 2 2 7 14 1 1 1 1 1 . 4 Launcher 9 | . 1 . 1 . 2 1 1 1 . . . . . . . . . . . . . . . . . 1 . . . . . . 1 Special Weapon 32 | . . . . . . 1 1 1 . 2 . . . 1 1 . 2 1 1 . 1 2 1 . 1 8 . . . . . 2 6 Impact Weapon 10 | . 1 . . . 1 . . 3 1 . 2 . . . . . . . . . . . . . . 2 . . . . . . . Slashing Weapon 10 | . . . . . . . . . . . 1 . . 4 . . 1 . . 3 1 . . . . . . . . . . . . Piercing Weapon . | . . . . . . . . . . . . . . . . . . . . . . . . . . . . . . . . . . Special Melee Weapon 9 | . 2 . . . . 2 . . . 1 . . . 2 . . . . . 1 . . . . . . . . . . . . 1 Unidentified Prototypes 30 | . . . . 4 . 1 1 . . . . . . 1 1 . 1 . . . 4 3 4 1 . 5 . . . . . . 4 Corrupted Parts 8 | . . . . . . . . . . . . . . . . . . . . . 1 4 2 . . 1 . . . . . . . System Corruption 30 | . . . . . . . . . . . . . . . . . . . . . 6 5 8 . . 11 . . . . . . . Parts Lost 99 | . . 4 . 7 3 . 3 21 . 3 7 . . 2 . . 1 1 1 1 2 . 3 1 1 5 3 . 4 . 1 1 24 Power 12 | . . 1 . 1 . . 1 2 . 1 1 . . . . . . . . 1 . . 2 . . . . . . . . . 2 Propulsion 33 | . . 1 . 3 2 . 2 11 . 2 3 . . 2 . . . 1 . . . . . . . 1 . . . . 1 . 4 Utility 42 | . . 1 . 3 . . . 5 . . 1 . . . . . 1 . 1 . 1 . 1 1 1 3 3 . 4 . . 1 15 Weapon 12 | . . 1 . . 1 . . 3 . . 2 . . . . . . . . . 1 . . . . 1 . . . . . . 3 Highest Loss Streak 17 | . . 4 . 4 3 . 2 8 . 2 5 . . 1 . . 1 1 1 1 1 . 2 1 1 2 1 . 4 . 1 1 17 To Critical Strikes 2 | . . . . . . . . 1 . . . . . . . . . . . . . . . . . . . . . . 1 . . Average Slot Usage (%) 93 | . 98 89 97 98 91 99 88 92 100 97 92 100 98 99 91 99 98 98 92 88 83 83 85 96 97 90 86 89 85 89 95 99 90 Engine 2 | . 14 8 11 8 . 8 4 3 6 . . . 5 6 5 5 5 5 3 . . . . . . . . . . . . . . Core 1 | . . . . . 9 . 1 2 . 6 5 6 . . 2 5 5 5 5 1 3 . . . . . . . . . . . . Reactor 4 | . . . . . . . . . . . . . . . . . . . 1 8 6 10 9 9 8 9 8 8 8 8 8 8 7 Treads 10 | . 27 27 33 35 35 36 29 11 . . . . . . . . . . 5 20 15 15 12 . . . . . . . . . . Leg 13 | . . . . . . . . 14 30 29 12 . . . . . . . . . . . 4 28 27 27 27 26 25 24 23 23 23 Hover 2 | . . . . . . . . 2 . . 16 33 33 32 30 34 35 33 18 . . . . . . . . . . . . . . Device 8 | . 12 13 10 . . 6 11 9 4 . 1 . . . . . . . 2 9 7 7 10 16 11 11 9 8 7 8 8 13 13 Storage 7 | . 14 14 11 9 9 9 7 7 7 7 6 6 6 6 5 5 5 5 5 5 5 5 5 9 4 4 8 8 8 12 11 5 6 Processor 7 | . . . . 9 12 7 . 5 7 7 10 13 13 13 11 11 11 11 10 10 10 14 15 9 11 11 9 8 8 8 8 8 4 Hackware 12 | . . . . . 8 12 15 16 17 23 20 20 20 20 17 17 15 17 21 15 15 14 3 5 16 10 6 14 13 15 20 28 13 Protection 6 | . . . 9 17 . 1 . 2 7 6 5 6 5 5 4 5 5 4 6 4 7 2 9 9 4 7 8 5 5 8 8 4 14 Energy Gun 1 | . 3 . . 6 8 6 . 3 1 . . . 1 3 . . . . . . . . . . . . . . . . . . . Energy Cannon 2 | . . . . . . . . . . . . . . . . . . . . . . 2 4 4 3 3 3 4 3 4 6 7 5 Ballistic Gun 4 | . 14 . 20 11 8 10 13 8 11 10 3 . . . . . . . . . . 5 2 . . . . . . . . . . Ballistic Cannon 2 | . 9 23 1 . . . . . . 3 4 6 3 . . . . 3 . 4 5 1 3 1 2 . . 3 1 2 1 . 1 Naked Turns . | . . . . . . . . . . . . . . . . . . . . . . . . . . . . . . . . . . Heaviest Build 250 | 13 34 34 103 107 93 98 100 102 102 111 109 33 33 42 48 48 52 56 126 136 151 151 165 176 180 180 183 183 185 188 190 184 250 Greatest Support 240 | 40 40 40 60 80 80 80 82 82 60 70 70 40 40 48 53 60 60 60 180 203 235 240 240 180 180 190 190 190 190 190 190 190 190 Greatest Overweight (x) 8 | . . . 1 1 1 1 1 8 1 3 2 . . 1 1 1 1 . 1 . . . 1 . 1 1 1 . 1 . . 1 1 Average Overweight (x) . | . . . . 1 1 1 1 1 1 1 . . . . . . . . . . . . . . . . . . . . . . . Largest Inventory Capacity 25 | 8 15 15 25 25 25 25 25 25 25 25 25 10 15 15 15 15 15 15 25 25 25 25 25 25 25 25 25 25 25 25 25 25 25 Average Capacity 22 | 7 12 15 18 25 25 25 25 25 25 25 21 10 12 15 15 15 15 15 19 25 25 25 25 25 25 25 25 25 25 25 25 25 25 Most Carried 25 | 6 15 15 25 25 25 25 25 25 25 25 25 10 15 15 15 15 15 15 25 25 25 25 25 25 25 25 25 25 25 25 25 25 25 Average Carried 22 | 2 12 14 17 24 24 24 24 24 24 24 18 10 12 14 14 15 14 15 18 24 24 24 24 24 24 23 24 24 24 24 24 24 24 Final Capacity 25 | 8 15 15 25 25 25 25 25 25 25 25 10 10 15 15 15 15 15 15 25 25 25 25 25 25 25 25 25 25 25 25 25 25 25 Final Carried 25 | 6 15 15 25 24 25 25 25 25 25 25 10 10 15 15 15 15 15 15 25 25 25 25 25 24 25 25 23 25 25 25 25 25 15 Class Distribution -------------------- 32% | Scavenger-Mutant 30% | Botlord-Mutant 15% | Bothacker-Mutant 14% | Trapper-Mutant 6% | Mutant Dominant Class ---------------- Mutant | -10/Materials Trapper-Mutant | -10/Mines Trapper-Mutant | -9/Materials Trapper-Mutant | -8/Materials Scavenger-Mutant | -8/Garrison Scavenger-Mutant | -8/Materials Trapper-Mutant | -7/Factory Bothacker-Mutant | -7/Garrison Bothacker-Mutant | -7/Factory Bothacker-Mutant | -7/Garrison Botlord-Mutant | -6/Factory Bothacker-Mutant | -6/Waste Bothacker-Mutant | -6/Factory Bothacker-Mutant | -6/Garrison Botlord-Mutant | -5/Factory Botlord-Mutant | -5/Waste Botlord-Mutant | -5/Factory Botlord-Mutant | -5/Garrison Botlord-Mutant | -4/Factory Botlord-Mutant | -4/Extension Botlord-Mutant | -4/Cetus Botlord-Mutant | -4/Archives Bothacker-Mutant | -4/Hub_04(d) Scavenger-Mutant | -3/Research Scavenger-Mutant | -3/Quarantine Scavenger-Mutant | -3/Section 7 Botlord-Mutant | -3/Garrison Botlord-Mutant | -2/Research Botlord-Mutant | -2/Garrison Botlord-Mutant | -1/Access Botlord-Mutant | -1/Garrison Botlord-Mutant | -1/Access Scavenger-Mutant | -1/Command Resources | -11 -10 -10 -9 -8 -8 -8 -7 -7 -7 -7 -6 -6 -6 -6 -5 -5 -5 -5 -4 -4 -4 -4 -4 -3 -3 -3 -3 -2 -2 -1 -1 -1 -1 ----------- Run | Jun Mat Min Mat Mat Gar Mat Fac Gar Fac Gar Fac Was Fac Gar Fac Was Fac Gar Fac Ext Cet Arc Hub Res Qua Sec Gar Res Gar Acc Gar Acc Com Matter Collected 19227 | 160 892 268 449 696 587 447 407 1462 19 514 684 39 301 307 33 115 70 164 181 796 216 651 1155 167 1549 3489 1485 78 200 . 384 317 945 Remotely . | . . . . . . . . . . . . . . . . . . . . . . . . . . . . . . . . . . Salvage Created 34278 | . 610 92 768 983 687 962 380 1326 . 196 946 . 304 . . . 350 227 41 577 313 483 2437 183 2748 6781 2529 255 1656 . 1175 2577 4692 Parts 1478 | . 51 5 60 59 37 40 14 76 . 9 30 . 7 . . . 15 9 3 13 8 38 126 11 122 219 80 6 59 . 40 119 222 Haulers Intercepted 22 | . 2 . 3 2 . 2 . . . . 1 . 2 . . . 2 . . . . . 1 . 1 5 . . . . . 1 . Recyclers Shooed 15 | . 2 . 4 3 . . . . . . 4 . . . . . . . . . . . . . . . . . . . . 2 . Parts Field Recycled . | . . . . . . . . . . . . . . . . . . . . . . . . . . . . . . . . . . Retrieved Matter . | . . . . . . . . . . . . . . . . . . . . . . . . . . . . . . . . . . Parts Self-Destructed . | . . . . . . . . . . . . . . . . . . . . . . . . . . . . . . . . . . Prevented . | . . . . . . . . . . . . . . . . . . . . . . . . . . . . . . . . . . Kills | -11 -10 -10 -9 -8 -8 -8 -7 -7 -7 -7 -6 -6 -6 -6 -5 -5 -5 -5 -4 -4 -4 -4 -4 -3 -3 -3 -3 -2 -2 -1 -1 -1 -1 ------- Run | Jun Mat Min Mat Mat Gar Mat Fac Gar Fac Gar Fac Was Fac Gar Fac Was Fac Gar Fac Ext Cet Arc Hub Res Qua Sec Gar Res Gar Acc Gar Acc Com Combat Hostiles Destroyed 493 | . 18 8 15 19 18 14 6 33 . 7 10 . 2 . . . . 7 1 7 4 1 25 3 35 82 42 4 29 . 19 27 57 Melee 6 | . . . . 1 . . . 1 . . . . 1 . . . . . . 3 . . . . . . . . . . . . . Guns 115 | . 11 . 11 18 14 13 3 27 . 2 4 . . . . . . . . . . . 12 . . . . . . . . . . Cannons 273 | . 6 8 . . . . . . . 5 6 . 1 . . . . 7 1 4 4 1 13 3 24 53 24 4 28 . 13 24 44 AOE 24 | . 1 . 4 . 4 1 3 5 . . . . . . . . . . . . . . . . . 3 1 . . . . . 2 Classes Destroyed 24 | . 7 1 3 3 1 . . . . 1 1 . . . . . . . . 1 . . 1 . . 2 1 . . . . . 2 Worker 32 | . 2 . 1 4 . 1 . . . . . . . . . . 1 . . . . . 10 . 3 2 . . . . . 2 6 Builder 10 | . . . 3 . . 1 . . . . . . . . . . . . . . . . 1 . 3 . . . . . . 2 . Tunneler 2 | . . . . . . . . . . . . . . . . . . . . . . . 2 . . . . . . . . . . Hauler 22 | . 2 . 3 2 . 2 . . . . 1 . 2 . . . 2 . . . . . 1 . 1 5 . . . . . 1 . Recycler 25 | . 1 . 1 1 . 3 2 . . . 4 . . . . . 1 . . 1 . . 4 . 2 2 . . . . . 2 1 Mechanic 3 | . . . 2 . . . . . . . . . . . . . . . . . . . . . . . . . . . . . 1 Operator 16 | . 2 . . . . . . . . . . . 1 . . . 1 . . . . 8 2 . 1 1 . . . . . . . Watcher 15 | . 1 . . . . 1 . . . . . . . . . . . . . 1 . . . . 2 5 . . 1 . . 2 2 Swarmer 74 | . 9 4 6 6 3 2 . 7 . 3 2 . . . . . . 5 . . . . 5 . . 6 6 . 4 . 4 1 1 Cutter 13 | . . . . . . . . . . . 1 . . . . . . . . . . . . . . . 7 . 5 . . . . Saboteur 3 | . . . . . . . . . . . . . . . . . . . . . . . . . . . 2 . . . . . 1 Grunt 174 | . 9 2 6 7 3 7 4 15 . 2 5 . 1 . . . . 1 . 3 3 . 3 . 14 33 13 3 11 . 3 8 18 Brawler 15 | . . . . 1 2 1 . . . . . . . . . . . . . . . . . . . 1 2 . 1 . 2 1 4 Duelist 12 | . . . . 1 . . . . . . . . . . . . . . . . . . . . . 3 4 1 1 . . . 2 Protector 4 | . . . . . . . . . . 1 . . . . . . . . . . . . 1 . . 1 . . . . . 1 . Researcher 5 | . . . . . . . . . . . . . . . . . . . . . . . . . . 5 . . . . . . . Sentry 45 | . . . 3 3 6 4 . 3 . . 1 . . . . . . 1 . 2 . 1 1 1 . 9 4 . 3 . . 2 1 Demolisher 2 | . . 2 . . . . . . . . . . . . . . . . . . . . . . . . . . . . . . . Hunter 45 | . . . . 1 . . 1 4 . 1 1 . . . . . . . . . . . 5 . 7 6 2 . 2 . 8 4 3 Programmer 83 | . . . . . 4 . 1 4 . . . . 1 . . . . . 1 . 1 . 4 2 14 15 1 . 1 . 2 10 22 Behemoth 3 | . . . . . . . . . . . . . . . . . . . . 1 . . . . . . 1 . 1 . . . . S7 Guard 4 | . . . . . . . . . . . . . . . . . . . . . . . . . . 4 . . . . . . . M Guard 1 | . . . . . . . . . . . . . . . . . . . . . . . . . . . . . . . . . 1 Enhanced Grunt 1 | . . . . . . . . . . . . . . . . . . . . . . 1 . . . . . . . . . . . Lightning 6 | . . . . . . . . . . . . . . . . . . . . . . . 6 . . . . . . . . . . Combat Programmer 1 | . . . . . . . . . . . . . . . . . . . . . . . . . . . . . . . . . 1 Striker 2 | . . . . . . . . . . . . . . . . . . . . . . . . . . . . . . . . . 2 Executioner 5 | . . . . . . . . . . . . . . . . . . . . . . . . . . 4 . . . . . . 1 Alpha 7 2 | . . . . . . . . . . . . . . . . . . . . . . . . . . . . . . . . . 2 Surgeon 1 | . . . . . . . . . . . . . . . . . . 1 . . . . . . . . . . . . . . . Thug 1 | . . . . . . . . . . . . . . . . . . . . . 1 . . . . . . . . . . . . Savage 1 | . . . . . . . . . . . . . . . . . . . . 1 . . . . . . . . . . . . . Best Kill Streak 11 | . 5 4 6 6 4 4 4 5 . 2 7 . 2 . . . 2 5 1 3 3 3 9 1 11 6 10 4 5 . 4 4 8 Combat Bots Only 10 | . 4 4 4 5 4 4 4 5 . 2 6 . 1 . . . . 5 1 3 3 1 5 1 4 6 10 4 5 . 4 3 6 Max Kills in Single Turn 9 | . 1 1 3 2 2 3 3 2 . 1 1 . 1 . . . 1 1 1 1 1 1 9 1 1 3 2 3 3 . 1 2 5 Gunslinging 1 | . . . . . 1 . . 1 . . . . . . . . . . . . . . . . . . . . . . . . . Exploded 3 | . 1 . 2 . 2 1 3 1 . . . . . . . . . . . . . . . . . 2 1 . . . . . 2 Melee 1 | . . . . 1 . . . 1 . . . . 1 . . . . . . 1 . . . . . . . . . . . . . Uniques/NPCs Destroyed . | . . . . . . . . . . . . . . . . . . . . . . . . . . . . . . . . . . Combat | -11 -10 -10 -9 -8 -8 -8 -7 -7 -7 -7 -6 -6 -6 -6 -5 -5 -5 -5 -4 -4 -4 -4 -4 -3 -3 -3 -3 -2 -2 -1 -1 -1 -1 -------- Run | Jun Mat Min Mat Mat Gar Mat Fac Gar Fac Gar Fac Was Fac Gar Fac Was Fac Gar Fac Ext Cet Arc Hub Res Qua Sec Gar Res Gar Acc Gar Acc Com Damage Taken 35464 | . 503 627 334 1583 1011 614 415 3023 . 879 1283 . 72 334 . . . 810 222 1199 363 140 2779 223 1163 3025 1378 128 1053 . 1157 523 10623 Core 3854 | . 54 46 66 67 119 69 62 427 . 141 252 . . 43 . . . 62 52 84 41 39 240 24 271 302 79 . 51 . 40 33 1190 Absorbed by Shields 10157 | . . . . . 48 . . 125 . . . . . . . . . . . 55 24 . 1940 235 943 1188 1347 138 813 . 1203 551 1547 Reduced by Siege Mode 158 | . . . . . . . . . . . . . . . . . . . . . . . 158 . . . . . . . . . . Redirected to Core 102 | . . . . . . . . . . . . . . . . . . . . . . . . . 92 10 . . . . . . . Redirected to Shielding 372 | . . . . . . . . . . . . . . . . . . . . . . . 75 28 51 113 105 . . . . . . Regen/Repaired (Parts) 5718 | . 227 . 115 . . . . . . . . 9 . . 86 151 . 257 . . . . . . 862 2515 . 735 . . . . 761 Core Remaining (%) 59 | 100 . 60 83 . . 53 . . . 10 . . . 65 . . . 93 . . . . 60 . . . 7 . 66 . . . . Volleys Fired 2089 | . 56 23 54 69 65 49 22 121 . 31 50 . 3 21 4 . 2 35 8 59 24 44 123 12 133 280 164 13 67 4 65 100 388 Largest 2 | . 2 2 2 2 2 2 2 2 . 2 2 . 1 1 1 . 1 1 1 1 1 2 2 2 2 1 1 2 1 1 2 2 2 Hottest 300 | . 78 78 46 86 86 84 61 108 . 96 96 . 61 61 61 . 20 61 61 61 61 151 151 156 156 300 300 300 300 113 240 300 300 Shots Fired 2949 | . 106 37 100 138 111 92 39 205 . 58 68 . 3 21 4 . 2 35 9 60 24 79 185 21 160 271 162 14 67 4 125 171 578 Gun 954 | . 73 . 97 138 105 89 33 194 . 43 34 . . . . . . . . . . 64 84 . . . . . . . . . . Cannon 1778 | . 32 37 . . . . . . . 11 34 . 3 18 1 . . 28 5 60 13 7 101 21 154 263 162 14 67 4 125 167 451 Launcher 26 | . 1 . 3 . 6 2 3 7 . . . . . . . . . . . . . . . . . 3 . . . . . . 1 Special 191 | . . . . . . 1 3 4 . 4 . . . 3 3 . 2 7 4 . 11 8 . . 6 5 . . . . . 4 126 Kinetic 1175 | . 80 37 97 103 43 54 33 152 . 54 67 . 3 18 1 . . 28 5 60 13 68 122 9 24 41 . 2 . . 23 . 38 Thermal 1359 | . 25 . . 35 62 35 . 23 . . 1 . . . . . 2 . . . 11 11 63 10 68 73 81 12 65 4 102 167 509 Explosive 26 | . 1 . 3 . 6 2 3 7 . . . . . . . . . . . . . . . . . 3 . . . . . . 1 Electromagnetic 342 | . . . . . . . . 19 . . . . . . . . . . . . . . . 2 62 149 81 . 2 . . . 27 Robot Hit Streak 25 | . 9 6 12 15 10 17 6 16 . 9 10 . 5 3 6 . 1 4 5 9 4 9 12 9 14 21 22 4 11 10 17 12 25 Robot Miss Streak 7 | . 3 3 5 5 4 4 3 4 . 3 2 . 1 . . . 1 4 1 7 4 5 5 2 4 4 4 2 3 . 3 3 5 Penetration Max 3 | . . . . . . . . . . 1 2 . . . . . . . . 1 . 1 3 . 1 1 1 3 3 . . . 3 Secondary Targets 19 | . 1 . . 3 3 1 . 4 . 1 1 . . . . . . . . . . . 5 . . . . . . . . . . Max Gunslinging Chain 1 | . 1 . . 1 1 1 . 1 . 1 1 . . . . . . . . . . . 1 . . . . . . . . . . Capacitor 359 | . . . . . . . . . . . . . . . . . . . . . . . . . . 151 162 11 35 . . . . Shots Hit Robots 1840 | . 65 22 66 87 64 50 22 118 . 32 51 . 11 18 3 . 9 19 7 41 12 51 99 15 93 170 98 5 39 1 64 102 406 Core Hits 928 | . 38 9 34 41 29 29 16 79 . 10 27 . 4 1 . . 6 12 1 19 8 37 75 5 49 92 42 5 26 1 26 48 159 Critical Kills 66 | . . . . . 1 . . 2 . . . . . . . . . . . . . 8 16 . . 3 3 2 12 . 5 4 10 Critical Parts Destroyed 55 | . . . . . . . . 1 . . . . . . . . . . . . . 10 15 . . 2 1 1 11 . . . 14 Critical Strikes 236 | . 3 1 . 1 4 4 . 4 . 1 4 . 4 . . . . 4 1 10 1 19 36 2 14 32 19 3 25 . 6 4 34 Burn 9 | . 1 . . 1 3 4 . . . . . . . . . . . . . . . . . . . . . . . . . . . Meltdown 19 | . . . . . . . . . . . . . . . . . . . . . . . . . . . 2 . 1 . 5 4 7 Destroy 110 | . . . . . 1 . . 3 . . . . . . . . . . . . . 18 31 . . 5 4 3 24 . . . 21 Blast 37 | . 2 1 . . . . . . . 1 4 . 2 . . . . 4 1 8 1 1 5 1 3 . . . . . 1 . 2 Corrupt 56 | . . . . . . . . 1 . . . . . . . . . . . . . . . 1 11 27 13 . . . . . 3 Sever 5 | . . . . . . . . . . . . . 2 . . . . . . 2 . . . . . . . . . . . . 1 Melee Attacks 107 | . . . . . 4 . . 6 1 . 11 . 22 20 5 . 10 1 8 10 . . . . . 4 . . . . . . 5 Kinetic 4 | . . . . . . . . . . . . . . . . . . . . . . . . . . 4 . . . . . . . Impact 12 | . . . . . 4 . . 6 1 . 1 . . . . . . . . . . . . . . . . . . . . . . Slashing 71 | . . . . . . . . . . . 10 . 22 5 5 . 10 1 8 10 . . . . . . . . . . . . . Piercing . | . . . . . . . . . . . . . . . . . . . . . . . . . . . . . . . . . . Sneak Attacks 22 | . . . . . . . . . . . 1 . 1 15 . . 4 . . . . . . . . . . . . . . . 1 Combat Hostiles . | . . . . . . . . . . . . . . . . . . . . . . . . . . . . . . . . . . Follow-up Attacks . | . . . . . . . . . . . . . . . . . . . . . . . . . . . . . . . . . . Damage Inflicted 82580 | . 1132 459 1262 1705 1848 1267 678 2885 . 830 1846 . 461 56 . . 499 603 185 1786 450 635 3691 729 5930 12297 6124 1003 6631 41 2853 4907 19787 Guns 9667 | . 560 . 916 1652 1237 873 296 2020 . 352 774 . . . . . . . . . . 381 606 . . . . . . . . . . Cannons 63955 | . 460 447 . . . . . . . 337 990 . 70 43 . . . 603 185 1378 333 191 1971 714 5894 11566 5756 964 6631 41 2853 4633 17895 Explosions 5310 | . 68 . 297 . 611 359 382 775 . 141 . . . 13 . . . . . . . . 1068 . . 455 368 . . . . . 773 Melee 1540 | . . . . . . . . 80 . . 75 . 391 . . . 483 . . 329 . . . . . 182 . . . . . . . Ramming 812 | . 44 12 49 53 . 35 . 10 . . 7 . . . . . . . . 79 . . 46 15 36 94 . 39 . . . 274 19 Kinetic 17279 | . 785 447 916 1266 507 411 296 1615 . 689 1746 . 70 43 . . . 603 185 1378 333 496 1462 286 671 1379 . 21 . . 565 . 1109 Thermal 43793 | . 235 . . 386 730 462 . 399 . . 18 . . . . . 16 . . . 117 139 1321 323 1870 2738 3407 943 6463 41 2288 4633 17264 Explosive 3667 | . 68 . 297 . 611 359 382 636 . 141 . . . 13 . . . . . . . . . . . 387 . . . . . . 773 Electromagnetic 15671 | . . . . . . . . 145 . . . . . . . . . . . . . . 862 105 3353 7699 2717 . 168 . . . 622 Impact 80 | . . . . . . . . 80 . . . . . . . . . . . . . . . . . . . . . . . . . Slashing 1278 | . . . . . . . . . . . 75 . 391 . . . 483 . . 329 . . . . . . . . . . . . . Piercing . | . . . . . . . . . . . . . . . . . . . . . . . . . . . . . . . . . . Highest Corruption 30 | . . . . 7 12 12 1 8 8 8 . . . . . . . . 1 1 7 7 30 . 11 22 22 . . . . . . Average Corruption 10 | . . . . 7 8 12 1 5 8 8 . . . . . . . . 1 1 2 5 7 . 10 19 22 . . . . . . Corruption Purged 12 | . . . . . . . . . . . . . . . . . . . . . . 12 . . . . . . . . . . . Corruption Blocked 75 | . . . . . . . . . . . . . . . . . . . . . . . . . . 75 . . . . . . . Effects 532 | . . . . 3 51 35 . 57 5 40 . . . . . . . . 5 10 4 6 36 . 55 168 57 . . . . . . Message Errors 127 | . . . . 1 12 9 . 20 2 8 . . . . . . . . 2 . 2 1 9 . 13 38 10 . . . . . . Matter Fused 135 | . . . . . 16 9 . 13 . 11 . . . . . . . . 1 3 . 3 6 . 11 50 12 . . . . . . Heat Flow Errors 60 | . . . . . 2 7 . 10 1 7 . . . . . . . . . 1 1 1 3 . 7 13 7 . . . . . . Energy Discharges 51 | . . . . 1 4 2 . 5 . 3 . . . . . . . . . . . . 4 . 8 15 9 . . . . . . Parts Rejected 9 | . . . . . 1 1 . 1 . 1 . . . . . . . . . . . . 1 . . 1 3 . . . . . . Parts Fused 6 | . . . . . 1 . . . . . . . . . . . . . . . 1 . 1 . . 3 . . . . . . . Data Loss (minor) 64 | . . . . 1 6 1 . 2 1 6 . . . . . . . . . 4 . 1 7 . 8 21 6 . . . . . . Data Loss (major) 17 | . . . . . . 1 . 1 1 1 . . . . . . . . 1 1 . . . . 1 9 1 . . . . . . Misfires 20 | . . . . . 4 1 . 2 . 1 . . . . . . . . 1 1 . . 1 . 5 2 2 . . . . . . Alerts 14 | . . . . . 3 1 . 3 . 1 . . . . . . . . . . . . . . 1 3 2 . . . . . . Misdirections 4 | . . . . . . . . . . . . . . . . . . . . . . . . . 1 2 1 . . . . . . Weapon Failures 25 | . . . . . 2 3 . . . 1 . . . . . . . . . . . . 4 . . 11 4 . . . . . . Overload Shots . | . . . . . . . . . . . . . . . . . . . . . . . . . . . . . . . . . . Overflow Damage 4614 | . . . 3 . 28 23 . 9 . 69 111 . 7 . . . 17 . . 32 13 . 216 43 378 617 183 150 1286 . 108 233 1088 Projectiles 4125 | . . . . . . . . . . 69 60 . . . . . . . . 26 13 . 120 43 378 491 183 150 1286 . 108 186 1012 Explosions 357 | . . . 3 . 28 23 . 9 . . . . . . . . . . . . . . 96 . . 122 . . . . . . 76 Melee 132 | . . . . . . . . . . . 51 . 7 . . . 17 . . 6 . . . . . 4 . . . . . 47 . Knockbacks 89 | . 8 7 1 . . 1 . . . 3 11 . . 1 . . . . . 6 1 . 7 6 10 11 . . . . 4 4 8 Impact 10 | . . . 1 . . 1 . . . . 1 . . . . . . . . 1 . . 1 . . 2 . . . . . 3 . Kinetic 69 | . 6 7 . . . . . . . 2 9 . . 1 . . . . . 5 1 . 6 5 7 8 . . . . 4 . 8 Secondary 10 | . 2 . . . . . . . . 1 1 . . . . . . . . . . . . 1 3 1 . . . . . 1 . Self-Inflicted Damage 257 | . . . . . . . . 34 . 17 . . . . . . . . . . . . 96 . . 110 . . . . . . . Shots 5 | . . . . . . . . 1 . 1 . . . . . . . . . . . . 1 . . 2 . . . . . . . Rammed 28 | . 9 2 7 5 . 1 . 1 . . . . . . . . . . . 1 . . 2 . . . . . . . . . . Targets Rammed 62 | . 10 2 7 8 . 3 . 2 . . 1 . . . . . . . . 2 . . 4 1 2 6 . 2 . . . 11 1 Kicked 26 | . . . . . . . . 1 . . 1 . . . . . . . . . . . 1 1 2 6 . 2 . . . 11 1 Crushed 8 | . 1 . . 3 . 2 . . . . . . . . . . . . . 1 . . 1 . . . . . . . . . . Highest Temperature 415 | . 36 21 9 377 245 303 7 272 201 271 121 . 14 58 2 12 15 318 284 319 242 119 415 24 195 334 204 201 201 80 198 198 198 Average Temperature 113 | . 13 10 3 126 76 56 4 99 109 89 31 . 8 21 1 6 6 79 114 139 94 63 122 9 58 92 119 103 127 34 151 128 133 Received Heat Transfer 5133 | . 144 117 102 477 117 351 144 613 . 54 468 . . 12 . . . 54 . 346 108 27 135 4 139 197 166 28 20 . 24 65 1221 Effects 16 | . . . . 2 . . . . . . . . . . . . . 2 3 . . . 4 . . 1 . . 4 . . . . Shutdowns 1 | . . . . . . . . . . . . . . . . . . . . . . . 1 . . . . . . . . . . Energy Bleed 4 | . . . . 1 . . . . . . . . . . . . . . . . . . 2 . . 1 . . . . . . . Interference 9 | . . . . . . . . . . . . . . . . . . 2 3 . . . . . . . . . 4 . . . . Short Circuit 1 | . . . . . . . . . . . . . . . . . . . . . . . 1 . . . . . . . . . . Damage (minor) 1 | . . . . 1 . . . . . . . . . . . . . . . . . . . . . . . . . . . . . Siege Activations 10 | . . . . . . . . . . . . . . . . . . . . 3 . 1 6 . . . . . . . . . . Total Turns 191 | . . . . . . . . . . . . . . . . . . . . 12 . 7 172 . . . . . . . . . . Longest Duration 50 | . . . . . . . . . . . . . . . . . . . . 7 . 7 50 . . . . . . . . . . Robots Corrupted 62 | . . . . . . . . . . . . . . . . . . . . . . . . . 13 31 14 . . . . . 4 Combat Hostiles 55 | . . . . . . . . . . . . . . . . . . . . . . . . . 11 26 14 . . . . . 4 Parts Fried 173 | . . . . . . . . . . . . . . . . . . . . . . . 3 1 41 88 32 . 3 . . . 5 Impact Corruptions 8 | . . . . . . . . . . . . . . . . . . . . 1 . . . . 1 2 . . . . . 4 . Robots Melted 21 | . . . . . . . . . . . . . . . . . . . . . . . . . . . 3 . 1 . 5 4 8 Combat Hostiles 19 | . . . . . . . . . . . . . . . . . . . . . . . . . . . 3 . 1 . 5 3 7 Parts Melted 63 | . . . . 3 1 5 . 1 . . . . . . . . . . . . . . . . . 3 11 . 1 . 11 10 17 Heat Transferred 25026 | . 777 . . 777 1443 1147 . 711 . . 37 . . . . . 37 . . . 185 222 225 . . 1123 2224 111 962 37 1998 3756 9254 Parts Sabotaged 3 | . . . . . . . . . . . . . . . . . . . . . . . . . . . 3 . . . . . . Parts Stolen . | . . . . . . . . . . . . . . . . . . . . . . . . . . . . . . . . . . Parts Stripped . | . . . . . . . . . . . . . . . . . . . . . . . . . . . . . . . . . . Power Chain Reactions 7 | . . . . . . . . 1 . . . . . . . . . . . . . . 3 . . 1 2 . . . . . . Missiles Intercepted 5 | . . . . . . . . . . . . . . . . . . . . . . . . . . . . . . . . . 5 Alert | -11 -10 -10 -9 -8 -8 -8 -7 -7 -7 -7 -6 -6 -6 -6 -5 -5 -5 -5 -4 -4 -4 -4 -4 -3 -3 -3 -3 -2 -2 -1 -1 -1 -1 ------- Run | Jun Mat Min Mat Mat Gar Mat Fac Gar Fac Gar Fac Was Fac Gar Fac Was Fac Gar Fac Ext Cet Arc Hub Res Qua Sec Gar Res Gar Acc Gar Acc Com Peak Influence 1716 | . 269 174 296 253 849 717 336 1468 796 1080 590 206 1027 1716 1012 286 358 441 305 368 585 318 534 349 233 809 1492 988 1357 826 1091 684 1673 Initial 900 | . . 53 15 124 139 413 203 109 770 487 567 206 144 618 900 266 179 250 228 52 200 154 . 273 41 11 406 839 741 813 660 654 188 Average 492 | . 116 95 136 107 488 514 224 664 745 819 428 206 635 1258 820 253 229 389 206 106 339 208 248 231 93 426 1089 890 1059 817 921 486 1009 Maximum Alert Level 5 | . 1 . 1 1 3 3 1 4 3 3 2 1 3 5 3 1 1 2 1 1 2 1 2 1 1 3 4 3 4 3 3 2 5 Low Security (%) 31 | 100 89 100 55 76 6 . 23 7 . . . . 7 . . . 31 . 40 87 3 55 49 32 91 11 . . . . . 7 8 Level 1 20 | . 10 . 44 23 29 18 76 16 . . 22 100 25 . . 100 68 36 59 12 73 44 20 67 8 30 . . . . . 24 7 Level 2 20 | . . . . . 43 74 . 29 32 18 77 . 17 5 33 . . 63 . . 23 . 30 . . 50 17 . . . 10 67 9 Level 3 18 | . . . . . 19 7 . 39 67 81 . . 49 37 66 . . . . . . . . . . 7 22 100 63 100 89 . 33 Level 4 7 | . . . . . . . . 7 . . . . . 16 . . . . . . . . . . . . 59 . 36 . . . 35 Level 5 1 | . . . . . . . . . . . . . . 40 . . . . . . . . . . . . . . . . . . 4 High Security . | . . . . . . . . . . . . . . . . . . . . . . . . . . . . . . . . . . Max Security . | . . . . . . . . . . . . . . . . . . . . . . . . . . . . . . . . . . Squads Dispatched 109 | . 4 . 3 4 . 2 1 . . . 5 . 7 . 5 . 5 . . 3 . . 5 4 7 18 . 4 . . . 9 23 Investigation 21 | . 2 . 1 1 . 1 . . . . . . 6 . 2 . 2 . . 3 . . . 1 . 1 . 1 . . . . . Extermination 23 | . . . . . . . 1 . . . . . . . . . . . . . . . 2 . 4 4 . 1 . . . 3 8 Reinforcement 33 | . 2 . 2 1 . 1 . . . . 4 . 1 . 2 . 2 . . . . . 3 3 3 7 . . . . . 2 . Assault 21 | . . . . . . . . . . . . . . . 1 . . . . . . . . . . 2 . 2 . . . 1 15 Garrison 11 | . . . . 2 . . . . . . 1 . . . . . 1 . . . . . . . . 4 . . . . . 3 . Intercept . | . . . . . . . . . . . . . . . . . . . . . . . . . . . . . . . . . . Searches Triggered . | . . . . . . . . . . . . . . . . . . . . . . . . . . . . . . . . . . Construction Impeded 7 | . . . 1 . . . . . . . 2 . . . . . . . . . . . 2 . 1 . . . . . . 1 . Haulers Reinforced 9 | . . . . . . . . . . . 1 . 1 . 2 . 1 . . . . . . . . 4 . . . . . . . Active Scanning Responses . | . . . . . . . . . . . . . . . . . . . . . . . . . . . . . . . . . . Cargo Convoy Interrupts . | . . . . . . . . . . . . . . . . . . . . . . . . . . . . . . . . . . Stealth | -11 -10 -10 -9 -8 -8 -8 -7 -7 -7 -7 -6 -6 -6 -6 -5 -5 -5 -5 -4 -4 -4 -4 -4 -3 -3 -3 -3 -2 -2 -1 -1 -1 -1 --------- Run | Jun Mat Min Mat Mat Gar Mat Fac Gar Fac Gar Fac Was Fac Gar Fac Was Fac Gar Fac Ext Cet Arc Hub Res Qua Sec Gar Res Gar Acc Gar Acc Com Distress Signals 31 | . . . 1 3 . 2 . . 1 . 1 . 1 1 1 . 1 . . 1 2 . 3 2 4 1 . . . . . 2 4 Communications Jammed . | . . . . . . . . . . . . . . . . . . . . . . . . . . . . . . . . . . Distress Signals . | . . . . . . . . . . . . . . . . . . . . . . . . . . . . . . . . . . Times Spotted 870 | . 30 14 27 32 23 18 8 43 1 16 21 . 10 10 1 1 9 15 5 33 22 19 54 8 50 97 54 21 23 1 23 42 139 Peak Tracking Total 13 | . 4 4 5 7 4 3 4 4 2 4 7 . 4 4 2 1 2 7 2 6 8 2 6 3 6 6 11 10 8 1 7 6 13 Tactical Retreats 61 | . 1 1 1 1 7 1 . 5 . . 4 . . . . . . 1 . . . . 8 . 5 9 5 2 2 . 3 2 3 Traps | -11 -10 -10 -9 -8 -8 -8 -7 -7 -7 -7 -6 -6 -6 -6 -5 -5 -5 -5 -4 -4 -4 -4 -4 -3 -3 -3 -3 -2 -2 -1 -1 -1 -1 ------- Run | Jun Mat Min Mat Mat Gar Mat Fac Gar Fac Gar Fac Was Fac Gar Fac Was Fac Gar Fac Ext Cet Arc Hub Res Qua Sec Gar Res Gar Acc Gar Acc Com Traps Triggered 51 | . . . . 1 10 . . 5 . 8 1 . . 2 1 . . 3 2 1 . . 3 . 1 . 4 1 4 . . 4 . Indirectly . | . . . . . . . . . . . . . . . . . . . . . . . . . . . . . . . . . . Trap Hack Attempts 157 | . 100 . . . . 47 . . . . . . . . . . . . . 10 . . . . . . . . . . . . . Triggered . | . . . . . . . . . . . . . . . . . . . . . . . . . . . . . . . . . . Disarmed . | . . . . . . . . . . . . . . . . . . . . . . . . . . . . . . . . . . Reprogrammed 18 | . 9 . . . . 6 . . . . . . . . . . . . . 3 . . . . . . . . . . . . . Reused 2 | . . . . . . . . . . . . . . . . . . . 2 . . . . . . . . . . . . . . Traps Extracted 21 | . 9 . . . . 6 . . . . . . . . . . . . 3 3 . . . . . . . . . . . . . Installed 5 | . . . . . . . . . . . . . . . . . . . 5 . . . . . . . . . . . . . . Triggered 5 | . . . . . . . . . . . . . . . . . . . 2 . . . 2 . . . 1 . . . . . . Most Traps Carried 15 | . 9 9 9 9 9 15 15 15 15 15 15 10 10 10 10 10 10 10 10 8 7 7 7 7 7 3 3 . . . . . . Machines | -11 -10 -10 -9 -8 -8 -8 -7 -7 -7 -7 -6 -6 -6 -6 -5 -5 -5 -5 -4 -4 -4 -4 -4 -3 -3 -3 -3 -2 -2 -1 -1 -1 -1 ---------- Run | Jun Mat Min Mat Mat Gar Mat Fac Gar Fac Gar Fac Was Fac Gar Fac Was Fac Gar Fac Ext Cet Arc Hub Res Qua Sec Gar Res Gar Acc Gar Acc Com Machines Disabled 98 | . 1 1 . . 3 . . 2 . 3 2 . 2 4 3 . . 1 1 . 2 2 17 . 8 27 10 . 1 . 1 1 6 Max in Single Turn 7 | . 1 1 . . 1 . . 1 . 2 1 . . 1 . . . 1 . . 1 1 7 . 1 1 2 . 1 . 1 1 1 Garrison Access 2 | . . . . . . . . . . . . . . . 1 . 1 . . . . . . . . . . . . . . . . Garrison Relay 9 | . . . . . 1 . . 2 . . . . . . . . . . . . . . . . . . 4 . 1 . 1 . . Phase Generator 3 | . . . . . . . . . . 1 . . . 1 . . . . . . . . . . . . 1 . . . . . . Network Hub 2 | . . . . . . . . . . . . . . . . . . . . . . . 2 . . . . . . . . . . Machines Repaired . | . . . . . . . . . . . . . . . . . . . . . . . . . . . . . . . . . . Machines Sabotaged . | . . . . . . . . . . . . . . . . . . . . . . . . . . . . . . . . . . Overloaded Fab Kills . | . . . . . . . . . . . . . . . . . . . . . . . . . . . . . . . . . . Hacking | -11 -10 -10 -9 -8 -8 -8 -7 -7 -7 -7 -6 -6 -6 -6 -5 -5 -5 -5 -4 -4 -4 -4 -4 -3 -3 -3 -3 -2 -2 -1 -1 -1 -1 --------- Run | Jun Mat Min Mat Mat Gar Mat Fac Gar Fac Gar Fac Was Fac Gar Fac Was Fac Gar Fac Ext Cet Arc Hub Res Qua Sec Gar Res Gar Acc Gar Acc Com Machines Accessed 114 | . 9 1 3 6 2 4 4 2 2 2 1 . 8 3 4 . 7 2 3 5 . . 3 3 9 20 3 2 1 1 1 . 3 Terminals 81 | . 6 1 2 3 2 3 2 2 1 2 1 . 2 3 2 . 5 2 2 5 . . 3 3 7 15 3 . 1 . 1 . 2 Fabricators 6 | . . . . . . . 1 . . . . . 4 . . . . . 1 . . . . . . . . . . . . . . Repair Stations 8 | . 1 . 1 . . . . . . . . . . . 1 . . . . . . . . . 2 2 . 1 . . . . . Recycling Units 6 | . 2 . . 1 . 1 . . . . . . 1 . . . . . . . . . . . . . . . . . . . 1 Scanalyzers 3 | . . . . 1 . . . . . . . . . . . . . . . . . . . . . 2 . . . . . . . Garrison Access 10 | . . . . 1 . . 1 . 1 . . . 1 . 1 . 2 . . . . . . . . 1 . 1 . 1 . . . Total Hacks 347 | . 24 2 6 15 5 12 7 2 6 5 2 . 15 5 16 . 19 6 16 13 . . 9 15 49 75 4 6 2 1 1 . 9 Successful 171 | . 13 1 3 9 . 6 1 2 3 . 1 . 13 3 9 . 10 1 9 5 . . 3 7 23 36 3 5 1 1 1 . 2 Failed 175 | . 11 1 3 6 5 6 6 . 3 5 1 . 2 2 7 . 9 5 7 8 . . 6 8 25 39 1 1 1 . . . 7 Catastrophic 40 | . 3 . 2 . 3 2 2 . 1 1 . . 1 . 2 . 1 . . 1 . . 2 4 6 6 . . . . . . 3 Database Lockouts 1 | . . . . . . . . . . . . . . . . . . . . . . . . . 1 . . . . . . . . Manual 153 | . 18 2 4 7 . 6 2 . 4 . . . 7 . 11 . 8 . 9 . 1 . 4 12 23 31 . . . . . . 4 Terminals 271 | . 18 2 4 11 5 11 5 2 5 5 2 . 6 5 11 . 17 6 10 13 . . 9 15 38 60 4 . 2 . 1 . 4 Fabricators 14 | . . . . . . . 1 . . . . . 7 . . . . . 6 . . . . . . . . . . . . . . Repair Stations 35 | . 4 . 2 . . . . . . . . . . . 4 . . . . . . . . . 11 9 . 5 . . . . . Recycling Units 10 | . 2 . . 1 . 1 . . . . . . 1 . . . . . . . . . . . . . . . . . . . 5 Scanalyzers 7 | . . . . 2 . . . . . . . . . . . . . . . . . . . . . 5 . . . . . . . Garrison Access 10 | . . . . 1 . . 1 . 1 . . . 1 . 1 . 2 . . . . . . . . 1 . 1 . 1 . . . Terminal Hacks 85 | . 5 1 1 4 . 4 . 2 2 . 1 . 3 3 4 . 6 1 2 5 . . 3 6 10 16 3 . 1 . 1 . 1 Part Schematic 9 | . 1 1 1 1 . 1 . . . . . . . . . . 1 . . . . . . 1 2 . . . . . . . . Robot Analysis 3 | . 2 . . . . . . . . . . . . . . . . . . . . . 1 . . . . . . . . . . Prototype ID Bank 15 | . 1 . . 2 . 1 . . 1 . . . . . . . 2 . . 1 . . . 1 3 3 . . . . . . . Open Door 12 | . . . . . . . . 1 . . . . . 1 . . . . 1 3 . . . . . 5 . . . . . . 1 Branch Access Points 4 | . . . . . . . . . . . . . 1 . 1 . . . 1 . . . . 1 . . . . . . . . . Emergency Access Points 5 | . . . . . . . . 1 . . . . . . . . . 1 . . . . . . . . 1 . 1 . 1 . . Machine Index 2 | . . . . . . . . . . . . . 1 . . . . . . . . . . . . 1 . . . . . . . Fabricator Index 1 | . . . . . . . . . . . . . . . . . . . . . . . . 1 . . . . . . . . . Repair Station Index 1 | . . . . . . . . . . . . . . . 1 . . . . . . . . . . . . . . . . . . Garrison Index 2 | . . . . . . . . . . . . . . . . . 1 . . . . . . . . 1 . . . . . . . Alert Level 2 | . . . . . . . . . . . . . . . . . . . . 1 . . . . . 1 . . . . . . . Unreport Threat 19 | . . . . 1 . 1 . . 1 . 1 . 1 . 2 . 1 . . . . . 1 2 4 4 . . . . . . . Locate Traps 3 | . 1 . . . . 1 . . . . . . . . . . . . . . . . 1 . . . . . . . . . . Patrol Status 2 | . . . . . . . . . . . . . . . . . . . . . . . . . 1 1 . . . . . . . Hauler Manifests 1 | . . . . . . . . . . . . . . . . . 1 . . . . . . . . . . . . . . . . Garrison Registry 2 | . . . . . . . . . . . . . . 1 . . . . . . . . . . . . 1 . . . . . . Patrol Navigation 1 | . . . . . . . . . . . . . . . . . . . . . . . . . . . 1 . . . . . . Security Stations 1 | . . . . . . . . . . . . . . 1 . . . . . . . . . . . . . . . . . . . Fabricator Hacks 9 | . . . . . . . . . . . . . 4 . . . . . 5 . . . . . . . . . . . . . . Load Schematic 5 | . . . . . . . . . . . . . 3 . . . . . 2 . . . . . . . . . . . . . . Build 4 | . . . . . . . . . . . . . 1 . . . . . 3 . . . . . . . . . . . . . . Repair Station Hacks 29 | . 4 . 2 . . . . . . . . . . . 3 . . . . . . . . . 9 7 . 4 . . . . . Scan Component 16 | . 2 . 1 . . . . . . . . . . . 2 . . . . . . . . . 5 4 . 2 . . . . . Repair 13 | . 2 . 1 . . . . . . . . . . . 1 . . . . . . . . . 4 3 . 2 . . . . . Recycling Unit Hacks . | . . . . . . . . . . . . . . . . . . . . . . . . . . . . . . . . . . Scanalyzer 5 | . . . . 1 . . . . . . . . . . . . . . . . . . . . . 4 . . . . . . . Insert Component 5 | . . . . 1 . . . . . . . . . . . . . . . . . . . . . 4 . . . . . . . Garrison Access Hacks 10 | . . . . 1 . . 1 . 1 . . . 1 . 1 . 2 . . . . . . . . 1 . 1 . 1 . . . Unlock Access 8 | . . . . 1 . . 1 . 1 . . . 1 . . . 1 . . . . . . . . 1 . 1 . 1 . . . Seal Access 2 | . . . . . . . . . . . . . . . 1 . 1 . . . . . . . . . . . . . . . . Unauthorized Hacks 33 | . 4 . . 3 . 2 . . . . . . 5 . 1 . 2 . 2 . . . . 1 4 8 . . . . . . 1 Terminals 23 | . 2 . . 2 . 1 . . . . . . 1 . 1 . 2 . 1 . . . . 1 4 8 . . . . . . . Track 1 | . . . . . . . . . . . . . . . . . . . . . . . . . . 1 . . . . . . . Assimilate 1 | . . . . . . . . . . . . . . . . . . . . . . . . . . 1 . . . . . . . Botnet 15 | . 1 . . 1 . 1 . . . . . . 1 . 1 . 1 . 1 . . . . 1 3 4 . . . . . . . Disrupt 2 | . . . . . . . . . . . . . . . . . . . . . . . . . . 2 . . . . . . . Operators 4 | . 1 . . 1 . . . . . . . . . . . . 1 . . . . . . . 1 . . . . . . . . Fabricators 4 | . . . . . . . . . . . . . 3 . . . . . 1 . . . . . . . . . . . . . . Prioritize 1 | . . . . . . . . . . . . . . . . . . . 1 . . . . . . . . . . . . . . Recompile 3 | . . . . . . . . . . . . . 3 . . . . . . . . . . . . . . . . . . . . Repair Stations . | . . . . . . . . . . . . . . . . . . . . . . . . . . . . . . . . . . Recycling Units 6 | . 2 . . 1 . 1 . . . . . . 1 . . . . . . . . . . . . . . . . . . . 1 Reject 1 | . . . . . . . . . . . . . . . . . . . . . . . . . . . . . . . . . 1 Tunnel 5 | . 2 . . 1 . 1 . . . . . . 1 . . . . . . . . . . . . . . . . . . . . Scanalyzers . | . . . . . . . . . . . . . . . . . . . . . . . . . . . . . . . . . . Garrison Access . | . . . . . . . . . . . . . . . . . . . . . . . . . . . . . . . . . . Data Cores Recovered 6 | . . . . . . . . . 1 . . . 1 . . . 1 . . . . . 2 . 1 . . . . . . . . Used 2 | . . . . . . . . . . . . . 1 . . . 1 . . . . . . . . . . . . . . . . Hacking Detections 78 | . 7 1 3 5 2 3 3 . 2 2 1 . 3 1 3 . 5 2 1 4 1 . 3 3 7 12 1 1 . . . . 2 Full Trace Events 16 | . 1 . 1 . 2 . . . . 2 . . 1 . 2 . 2 1 . 2 . . . 1 . 1 . . . . . . . Feedback Events 2 | . . . . . . . . . . . . . . . . . 1 . . . . . . . . 1 . . . . . . . Corruption 1 | . . . . . . . . . . . . . . . . . . . . . . . . . . 1 . . . . . . . Hackware Fried 1 | . . . . . . . . . . . . . . . . . 1 . . . . . . . . . . . . . . . . Feedback Blocked . | . . . . . . . . . . . . . . . . . . . . . . . . . . . . . . . . . . Robot Schematics Acquired 8 | . . . . . . . . . . . . . . . . . . . . . . . . . . 8 . . . . . . . Robots Built . | . . . . . . . . . . . . . . . . . . . . . . . . . . . . . . . . . . Authchips . | . . . . . . . . . . . . . . . . . . . . . . . . . . . . . . . . . . Time . | . . . . . . . . . . . . . . . . . . . . . . . . . . . . . . . . . . Total Robot Build Rating . | . . . . . . . . . . . . . . . . . . . . . . . . . . . . . . . . . . Part Schematics Acquired 27 | . 1 1 1 1 . . . . . . . . . . . . 1 . . . . . . 1 8 13 . . . . . . . Parts Built 8 | . . . . . . . . . . . . . 3 . . . . . 5 . . . . . . . . . . . . . . Authchips 3 | . . . . . . . . . . . . . 1 . . . . . 2 . . . . . . . . . . . . . . Time 237 | . . . . . . . . . . . . . 20 . . . . . 217 . . . . . . . . . . . . . . Total Part Build Rating 37 | . . . . . . . . . . . . . 6 . . . . . 31 . . . . . . . . . . . . . . Parts Repaired 13 | . 2 . 1 . . . . . . . . . . . 1 . . . . . . . . . 4 3 . 2 . . . . . Time 633 | . 52 . 26 . . . . . . . . . . . 88 . . . . . . . . . 182 127 . 158 . . . . . Parts Recycled . | . . . . . . . . . . . . . . . . . . . . . . . . . . . . . . . . . . Recycled Matter . | . . . . . . . . . . . . . . . . . . . . . . . . . . . . . . . . . . Retrieved Matter . | . . . . . . . . . . . . . . . . . . . . . . . . . . . . . . . . . . Retrieved Components . | . . . . . . . . . . . . . . . . . . . . . . . . . . . . . . . . . . Parts Scanalyzed . | . . . . . . . . . . . . . . . . . . . . . . . . . . . . . . . . . . Part Schematics Acquired . | . . . . . . . . . . . . . . . . . . . . . . . . . . . . . . . . . . Parts Damaged . | . . . . . . . . . . . . . . . . . . . . . . . . . . . . . . . . . . Bothacking | -11 -10 -10 -9 -8 -8 -8 -7 -7 -7 -7 -6 -6 -6 -6 -5 -5 -5 -5 -4 -4 -4 -4 -4 -3 -3 -3 -3 -2 -2 -1 -1 -1 -1 ------------ Run | Jun Mat Min Mat Mat Gar Mat Fac Gar Fac Gar Fac Was Fac Gar Fac Was Fac Gar Fac Ext Cet Arc Hub Res Qua Sec Gar Res Gar Acc Gar Acc Com Used RIF Installer 9 | . . . . . 2 . . 1 . 1 . . . 1 . . . 1 . . . . . . . . 1 . 1 . 1 . . Threat Obfuscator 2 | . . . . . . . . . . 1 . . . . . . . 1 . . . . . . . . . . . . . . . Zone Cloak 1 | . . . . . 1 . . . . . . . . . . . . . . . . . . . . . . . . . . . . Robot Detection 1 | . . . . . . . . . . . . . . . . . . . . . . . . . . . 1 . . . . . . Patrol Navigation 1 | . . . . . . . . . . . . . . 1 . . . . . . . . . . . . . . . . . . . Program Shield 1 | . . . . . . . . 1 . . . . . . . . . . . . . . . . . . . . . . . . . Autoassimilate 1 | . . . . . . . . . . . . . . . . . . . . . . . . . . . . . 1 . . . . Crosswire 1 | . . . . . . . . . . . . . . . . . . . . . . . . . . . . . . . 1 . . Robots Hacked 48 | . . . . . . . 2 2 . 3 . . . 1 2 . . 5 2 . . . . . 1 5 . . . . . 12 13 Non-combat 6 | . . . . . . . . . . . . . . . 2 . . . 2 . . . . . . . . . . . . 2 . Combat 42 | . . . . . . . 2 2 . 3 . . . 1 . . . 5 . . . . . . 1 5 . . . . . 10 13 Autoassimilated 17 | . . . . . . . . . . . . . . . . . . . . . . . . . . . . . . . . 10 7 Robot Hacks Applied 37 | . . . . . . . 3 2 . 4 . . . 1 2 . . 5 2 . . . . . 3 5 . . . . . 4 6 find_chute 3 | . . . . . . . . . . . . . . . 2 . . . 1 . . . . . . . . . . . . . . find_fabricator 1 | . . . . . . . . . . . . . . . . . . . 1 . . . . . . . . . . . . . . drop_inventory 1 | . . . . . . . . . . . . . . . . . . . . . . . . . . . . . . . . 1 . purge_threat 3 | . . . . . . . . . . . . . . . . . . . . . . . . . . . . . . . . 3 . locate_prototypes 1 | . . . . . . . . . . . . . . . . . . . . . . . . . . 1 . . . . . . . report_analyses 2 | . . . . . . . . . . . . . . . . . . . . . . . . . 2 . . . . . . . . find_garrison 1 | . . . . . . . 1 . . . . . . . . . . . . . . . . . . . . . . . . . . show_paths 1 | . . . . . . . 1 . . . . . . . . . . . . . . . . . . . . . . . . . . link_complan 1 | . . . . . . . . . . 1 . . . . . . . . . . . . . . . . . . . . . . . disrupt_area 4 | . . . . . . . 1 . . 3 . . . . . . . . . . . . . . . . . . . . . . . overwrite_iff 7 | . . . . . . . . 2 . . . . . . . . . 5 . . . . . . . . . . . . . . . formatsys_low 5 | . . . . . . . . . . . . . . . . . . . . . . . . . 1 4 . . . . . . . formatsys_high 7 | . . . . . . . . . . . . . . 1 . . . . . . . . . . . . . . . . . . 6 Relay Couplers Released 52 | . . . . . 9 . . 11 . . . . . . . . . . . . . . . . 4 . 18 . 5 . 5 . . Machine Destruction 40 | . . . . . 5 . . 7 . . . . . . . . . . . . . . . . . . 18 . 5 . 5 . . Programmers 12 | . . . . . 4 . . 4 . . . . . . . . . . . . . . . . 4 . . . . . . . . Attached 30 | . . . . . . 1 . 4 1 1 . . . 1 . . . 1 . . . . 1 . 1 2 2 2 . 1 6 1 5 Crosswired 5 | . . . . . . . . . . . . . . . . . . . . . . . . . . . . . . . 5 . . Fabnet Peak Effective % . | . . . . . . . . . . . . . . . . . . . . . . . . . . . . . . . . . . Robots Rewired 37 | . . . . . . . . 8 . . . . . 9 1 . . . 1 16 . . . . . . 2 . . . . . . Allies Hacked 1 | . . . . . . . . . . . . . . . . . . . . . . . . . . . . . . . . . 1 Hacks Repelled . | . . . . . . . . . . . . . . . . . . . . . . . . . . . . . . . . . . Allies | -11 -10 -10 -9 -8 -8 -8 -7 -7 -7 -7 -6 -6 -6 -6 -5 -5 -5 -5 -4 -4 -4 -4 -4 -3 -3 -3 -3 -2 -2 -1 -1 -1 -1 -------- Run | Jun Mat Min Mat Mat Gar Mat Fac Gar Fac Gar Fac Was Fac Gar Fac Was Fac Gar Fac Ext Cet Arc Hub Res Qua Sec Gar Res Gar Acc Gar Acc Com Total Allies 132 | . . 4 . . 2 . . 12 . . . 20 . 10 1 19 . 5 1 19 5 . . . 1 5 4 . . . . 10 14 Largest Group 20 | . . 3 1 . 1 . . 6 5 5 . 20 20 15 10 19 15 4 1 9 8 4 3 . 1 1 2 . . . . 3 5 Highest-Rated Group 716 | . . 40 16 . 25 . . 226 205 205 . 716 716 568 454 702 595 138 49 468 700 330 234 . 49 49 175 . . . . 158 628 Highest-Rated Ally 215 | . . 31 16 . 25 . . 80 80 80 . 50 50 85 81 50 50 49 49 159 151 96 96 . 49 49 95 . . . . 64 215 Total Orders 13 | . . . . . . . . . . . . . . . . . . . . . 2 2 2 . 4 3 . . . . . . . STAY 6 | . . . . . . . . . . . . . . . . . . . . . . 1 1 . 2 2 . . . . . . . FOLLOW 5 | . . . . . . . . . . . . . . . . . . . . . . 1 1 . 2 1 . . . . . . . GUARD 1 | . . . . . . . . . . . . . . . . . . . . . 1 . . . . . . . . . . . . AID 1 | . . . . . . . . . . . . . . . . . . . . . 1 . . . . . . . . . . . . Ally Attacks 1040 | . . 31 17 . 3 . . 42 8 37 . . 156 86 19 118 72 28 12 93 121 22 8 . 3 7 30 . . . . 33 94 Total Damage 44193 | . . 317 164 . 65 . . 931 181 970 . . 3380 3617 1063 5131 1807 702 310 3271 3844 798 267 . . . 1466 . . . . 1123 14786 Kills 248 | . . 7 6 . . . . 10 3 11 . . 28 34 6 8 10 3 1 23 20 4 4 . . . 6 . . . . 4 60 Allies Corrupted 7 | . . . . . . . . . . . . . . . . . . . . 1 . . . . . 1 1 . . . . . 4 Allies Melted 1 | . . . . . . . . . . . . . . . . . . . . . . . . . . . . . . . . . 1 Intel | -11 -10 -10 -9 -8 -8 -8 -7 -7 -7 -7 -6 -6 -6 -6 -5 -5 -5 -5 -4 -4 -4 -4 -4 -3 -3 -3 -3 -2 -2 -1 -1 -1 -1 ------- Run | Jun Mat Min Mat Mat Gar Mat Fac Gar Fac Gar Fac Was Fac Gar Fac Was Fac Gar Fac Ext Cet Arc Hub Res Qua Sec Gar Res Gar Acc Gar Acc Com Robot Analysis Total 3 | . 2 . . . . . . . . . . . . . . . . . . . . . 1 . . . . . . . . . . Derelict Logs Recovered 3 | . . 3 . . . . . . . . . . . . . . . . . . . . . . . . . . . . . . . Drone Launches . | . . . . . . . . . . . . . . . . . . . . . . . . . . . . . . . . . . Drone Recoveries . | . . . . . . . . . . . . . . . . . . . . . . . . . . . . . . . . . . Exploration | -11 -10 -10 -9 -8 -8 -8 -7 -7 -7 -7 -6 -6 -6 -6 -5 -5 -5 -5 -4 -4 -4 -4 -4 -3 -3 -3 -3 -2 -2 -1 -1 -1 -1 ------------- Run | Jun Mat Min Mat Mat Gar Mat Fac Gar Fac Gar Fac Was Fac Gar Fac Was Fac Gar Fac Ext Cet Arc Hub Res Qua Sec Gar Res Gar Acc Gar Acc Com Turns Passed 34826 | 81 2147 881 1187 1469 1388 867 520 2252 264 1244 697 82 288 547 348 131 376 255 670 1538 467 803 1440 355 2162 3422 1079 350 890 99 614 1753 4160 Spaces Moved 20257 | 44 1011 502 498 503 479 258 189 761 130 556 415 126 489 782 615 137 644 282 566 729 184 382 602 286 1433 2358 773 276 716 85 375 1295 1776 Core 3 | 3 . . . . . . . . . . . . . . . . . . . . . . . . . . . . . . . . . Treads 5736 | 41 1011 502 498 503 479 258 189 307 . . . . . . . . . . 164 729 184 382 489 . . . . . . . . . . Legs 10750 | . . . . . . . . 450 130 556 135 . . . . . . . . . . . 113 286 1433 2358 773 276 716 85 375 1295 1769 Wheels . | . . . . . . . . . . . . . . . . . . . . . . . . . . . . . . . . . . Hover 3768 | . . . . . . . . 4 . . 280 126 489 782 615 137 644 282 402 . . . . . . . . . . . . . 7 Flight . | . . . . . . . . . . . . . . . . . . . . . . . . . . . . . . . . . . Fastest Speed 26 | 50 160 160 160 240 240 240 236 158 190 190 34 34 34 26 35 35 38 38 40 145 148 155 100 100 100 100 100 100 100 100 100 105 116 Average Speed 126 | 152 160 160 186 240 240 240 239 229 190 193 107 34 34 38 41 37 40 39 72 147 151 156 151 100 100 103 100 100 100 100 102 109 172 Slowest Speed 680 | 160 160 160 240 240 240 240 240 680 190 330 190 34 34 94 94 92 100 44 225 148 155 160 170 100 170 170 170 100 170 100 105 183 190 Overloaded Moves 18 | . . . . . . . . 1 . . . . . 4 . . . 13 . . . . . . . . . . . . . . . Propulsion Burnouts . | . . . . . . . . . . . . . . . . . . . . . . . . . . . . . . . . . . Robots Hopped 1 | . . . . . . . . . . . . . . . . . 1 . . . . . . . . . . . . . . . . Cave-ins Triggered . | . . . . . . . . . . . . . . . . . . . . . . . . . . . . . . . . . . Teleports 2 | . . . . . . . . . . . . . . . . . . . . . . . . . . 2 . . . . . . . Exploration Rate (%) 48 | 5 99 95 29 46 57 28 8 80 6 72 14 83 17 75 16 85 14 46 17 82 70 93 51 10 92 92 86 9 64 4 38 31 28 Regions Visited 33 Branch Regions 8 Pre-discovered Areas 6 | . 2 1 . 1 . 1 . . . . . . 1 . . . . . . . . . . . . . . . . . . . . Known Exits Taken 11 | . . 1 . 1 . . 1 . 1 . . . 1 . . . 1 . 1 . . . . 1 . 1 . 1 . 1 . . . Unknown Exits Taken 10 | 1 1 . 1 . . 1 . . . . . . . . . . . . . 1 1 1 1 . 1 . . . . . . 1 . Scrap Searched 3 | . . 3 . . . . . . . . . . . . . . . . . . . . . . . . . . . . . . . Spaces Dug 171 | . . . . . 4 . 7 . 1 . 10 . 8 4 6 . 1 . 7 . . . 7 1 8 31 27 4 23 2 6 11 3 Terrain Destroyed 1281 | . 2 4 34 . 12 15 21 19 1 75 26 . 9 81 6 . 1 6 8 32 5 3 225 6 34 99 179 20 113 3 43 64 135 Melee 37 | . . . . . 3 . . . 1 . 10 . 8 2 5 . 1 . 7 . . . . . . . . . . . . . . Projectile 649 | . . 4 . . 2 . . 1 . 4 16 . 1 3 1 . . 6 1 32 5 2 44 6 34 42 74 20 113 3 43 64 128 AOE 591 | . 2 . 34 . 7 15 21 18 . 71 . . . 76 . . . . . . . . 179 . . 57 104 . . . . . 7 Terrain Rammed . | . . . . . . . . . . . . . . . . . . . . . . . . . . . . . . . . . . Walls Destroyed . | . . . . . . . . . . . . . . . . . . . . . . . . . . . . . . . . . . Machines Disabled . | . . . . . . . . . . . . . . . . . . . . . . . . . . . . . . . . . . Actions | -11 -10 -10 -9 -8 -8 -8 -7 -7 -7 -7 -6 -6 -6 -6 -5 -5 -5 -5 -4 -4 -4 -4 -4 -3 -3 -3 -3 -2 -2 -1 -1 -1 -1 --------- Run | Jun Mat Min Mat Mat Gar Mat Fac Gar Fac Gar Fac Was Fac Gar Fac Was Fac Gar Fac Ext Cet Arc Hub Res Qua Sec Gar Res Gar Acc Gar Acc Com Total 26911 | 55 1429 542 656 674 621 417 230 1092 148 672 580 164 578 1007 695 215 739 391 810 1114 344 497 921 332 1997 3228 1083 348 859 95 477 1530 2371 Wait 2340 | . 179 5 42 27 7 12 1 17 . 19 54 39 44 147 47 77 70 44 176 197 98 21 106 2 303 307 61 40 35 . 8 59 96 Move 20222 | 43 1010 501 497 502 477 257 189 759 130 554 415 125 489 780 615 136 641 280 565 728 183 381 601 285 1432 2358 771 276 714 85 373 1294 1776 Hop 1 | . . . . . . . . . . . . . . . . . 1 . . . . . . . . . . . . . . . . Pick Up 333 | 6 26 3 19 15 12 6 4 25 6 3 6 . 7 5 4 . 2 . 14 3 9 6 18 6 26 44 14 6 6 2 5 13 12 Fast Attach 261 | 6 3 2 3 10 6 6 4 24 . 11 6 . . . 8 1 4 . 7 4 7 13 15 2 15 41 16 2 9 . 5 14 17 Attach 205 | . 2 2 3 4 6 . 3 15 3 1 10 . 1 3 1 . . . 4 1 2 2 10 9 17 52 5 5 8 3 2 7 24 Detach 80 | . 1 . . . . . . 4 . . . . 1 . . . . . 5 . 1 1 . 2 8 35 2 2 6 . 1 2 9 Swap 306 | . 23 2 14 10 14 19 4 16 2 10 10 . 5 11 2 . 3 3 8 11 3 13 19 6 24 33 2 . 1 . 10 9 19 Drop 465 | . 19 2 17 29 14 18 3 31 6 13 17 . 6 2 9 1 6 . 10 8 17 16 25 7 37 67 21 2 8 1 8 21 24 Fire 2089 | . 56 23 54 69 65 49 22 121 . 31 50 . 3 21 4 . 2 35 8 59 24 44 123 12 133 280 164 13 67 4 65 100 388 Melee 107 | . . . . . 4 . . 6 1 . 11 . 22 20 5 . 10 1 8 10 . . . . . 4 . . . . . . 5 Ram 1 | . . . . . . . . . . . . . . . . . . . . . . . . . . 1 . . . . . . . Kick 26 | . . . . . . . . 1 . . 1 . . . . . . . . . . . 1 1 2 6 . 2 . . . 11 1 Crush 36 | . 10 2 7 8 . 3 . 1 . . . . . . . . . . . 2 . . 3 . . . . . . . . . . Escape Stasis 111 | . . . . . 14 . . 9 . 30 . . . 18 . . . 28 . . . . . . . . 7 . 5 . . . . Rewire 166 | . . . . . 2 . . 63 . . . . . . . . . . . 81 . . . . . . 20 . . . . . . Trap 162 | . 100 . . . . 47 . . . . . . . . . . . . 5 10 . . . . . . . . . . . . . Miscellaneous . | . . . . . . . . . . . . . . . . . . . . . . . . . . . . . . . . . . Route ------- -11/Junkyard -10/Materials (discovered 4 exits: *Mat x3 / *Min) -10/Mines (discovered 2 exits: *Mat x2) -9/Materials -8/Materials -8/Garrison (discovered 2 exits: *Mat x2) -8/Materials -7/Factory -7/Garrison (discovered 3 exits: *Fac x3) -7/Factory -7/Garrison (discovered 2 exits: *Fac x2) -6/Factory -6/Waste -6/Factory (discovered 3 exits: Low x2 / Gar) -6/Garrison (discovered 3 exits: *Fac x3) -5/Factory (discovered 2 exits: Upp x2) -5/Waste -5/Factory (discovered 2 exits: *Upp / Gar) -5/Garrison (discovered 2 exits: *Fac x2) -4/Factory (discovered 4 exits: *Upp x2 / *Ext x2) -4/Extension (discovered 2 exits: *Res / *Cet) -4/Cetus (discovered 2 exits: *Res / [*Arc]) -4/Archives (discovered 3 exits: *Res / *Hub x2) -4/Hub_04(d) (discovered 2 exits: *Res x2) -3/Research (discovered 3 exits: Arm / *Qua x2) -3/Quarantine (discovered 2 exits: *Res / *Sec) -3/Section 7 (discovered 2 exits: *Res / Gar) -3/Garrison (discovered 3 exits: *Res x3) -2/Research -2/Garrison (discovered 3 exits: *Acc x3) -1/Access -1/Garrison -1/Access -1/Command History --------- Turn | Location | Event 11 | -11/Junkyard | Discovered new exit (range 14) 82 | -11/Junkyard | Entered Materials 238 | -10/Materials | Discovered new exit (range 9) 302 | -10/Materials | Build established: Mutant 617 | -10/Materials | Discovered new exit (range 14) 1026 | -10/Materials | Discovered new exit (range 16) 1268 | -10/Materials | Discovered new exit (range 15) 2046 | -10/Materials | Repaired Lgt. Treads 2073 | -10/Materials | Repaired Lgt. Treads 2111 | -10/Materials | Build established: Trapper-Mutant 2229 | -10/Materials | Entered Mines 2230 | -10/Mines | Assembled infested the area 2232 | -10/Mines | Received a Mining Laser from a helpful Derelict 2236 | -10/Mines | Assisted by a Guerilla fighting off Assembled 2241 | -10/Mines | Discovered new exit (range 11) 2299 | -10/Mines | Lost 4 parts (1p1n1u1w) 2317 | -10/Mines | Identified exit to Materials 2414 | -10/Mines | Assisted by bots powering up and referring to "LRC-V3" 2630 | -10/Mines | Received a Rocket Launcher from a helpful Derelict 3040 | -10/Mines | Learned Materials security intel 3043 | -10/Mines | Learned location of Storage (-7) 3110 | -10/Mines | Entered Materials 3110 | -9/Materials | Accompanied by 1 ally 3110 | -9/Materials | Evolved 2 slots: Propulsion x1, Utility x1 3171 | -9/Materials | Repaired Lgt. Treads 3785 | -9/Materials | Discovered new exit (range 15) 4297 | -9/Materials | Entered another Materials area 4297 | -8/Materials | Evolved 2 slots: Propulsion x1, Utility x1 5651 | -8/Materials | Garrison activated, responded to threat 5705 | -8/Materials | Lost 4 parts (1p2n1u) 5735 | -8/Materials | Identified exit to Garrison 5766 | -8/Materials | Entered Garrison 5878 | -8/Garrison | Triggered checkpoint 5925 | -8/Garrison | Garrison Relay disabled 6056 | -8/Garrison | Build established: Scavenger-Mutant 6078 | -8/Garrison | Triggered checkpoint 6354 | -8/Garrison | Triggered checkpoint 6416 | -8/Garrison | Triggered checkpoint 6425 | -8/Garrison | Discovered new exit (range 14) 6662 | -8/Garrison | Triggered checkpoint 6737 | -8/Garrison | Installed Relay Interface Framework 6754 | -8/Garrison | System corruption reached 10% 6820 | -8/Garrison | Discovered new exit (range 11) 6859 | -8/Garrison | Rescued a captive Derelict 6860 | -8/Garrison | Rescued a captive Derelict 6892 | -8/Garrison | Triggered checkpoint 6917 | -8/Garrison | Lost 3 parts (2n1w) 7090 | -8/Garrison | Expanded RIF knowledge: Zone Cloak 7154 | -8/Garrison | Entered Materials 7888 | -8/Materials | Discovered new exit (range 7) 8007 | -8/Materials | Build established: Trapper-Mutant 8021 | -8/Materials | Entered Factory 8021 | -7/Factory | Evolved 2 slots: Utility x2 8541 | -7/Factory | Identified exit to Garrison 8541 | -7/Factory | Entered Garrison 8590 | -7/Garrison | Triggered checkpoint 8697 | -7/Garrison | Expanded RIF knowledge: Program Shield 8714 | -7/Garrison | Garrison Relay disabled 8829 | -7/Garrison | Triggered checkpoint 8829 | -7/Garrison | Triggered checkpoint 8976 | -7/Garrison | Lost 4 parts (1p2n1u) 9028 | -7/Garrison | Build established: Bothacker-Mutant 9078 | -7/Garrison | Discovered new exit (range 10) 9219 | -7/Garrison | Garrison Relay disabled 9612 | -7/Garrison | Core integrity fell below 50% 9660 | -7/Garrison | Lost 8 parts (4n2u2w) 10149 | -7/Garrison | Discovered new exit (range 10) 10210 | -7/Garrison | Triggered checkpoint 10278 | -7/Garrison | Lost 3 parts (2n1u) 10428 | -7/Garrison | Triggered checkpoint 10513 | -7/Garrison | Found embedded Infiltrators 10634 | -7/Garrison | Triggered checkpoint 10676 | -7/Garrison | Triggered checkpoint 10703 | -7/Garrison | Discovered new exit (range 10) 10724 | -7/Garrison | Triggered checkpoint 10793 | -7/Garrison | Entered Factory 10793 | -7/Factory | Accompanied by 5 allies 11057 | -7/Factory | Identified exit to Garrison 11057 | -7/Factory | Entered Garrison 11057 | -7/Garrison | Accompanied by 5 allies 11086 | -7/Garrison | Triggered checkpoint 11334 | -7/Garrison | Phase Generator disabled 11498 | -7/Garrison | Triggered checkpoint 11528 | -7/Garrison | Triggered checkpoint 11577 | -7/Garrison | Core integrity fell below 20% 11848 | -7/Garrison | Triggered checkpoint 11868 | -7/Garrison | Discovered new exit (range 11) 12145 | -7/Garrison | Discovered new exit (range 17) 12247 | -7/Garrison | Expanded RIF knowledge: Threat Obfuscation 12301 | -7/Garrison | Entered Factory 12301 | -6/Factory | Evolved 2 slots: Propulsion x1, Utility x1 12542 | -6/Factory | Build established: Botlord-Mutant 12589 | -6/Factory | Garrison activated, responded to threat 12672 | -6/Factory | Lost 5 parts (3n2w) 12998 | -6/Factory | Sucked down chute 12998 | -6/Factory | Entered Waste 12999 | -6/Waste | Joined by Warlord forces that had cleared the area 13008 | -6/Waste | Build established: Bothacker-Mutant 13016 | -6/Waste | Discovered new exit (range 12) 13080 | -6/Waste | Entered Factory 13080 | -6/Factory | Accompanied by 20 allies 13324 | -6/Factory | Identified exit to Lower Caves 13350 | -6/Factory | Fabricated Plasma Cutter (x3) 13364 | -6/Factory | Identified exit to Garrison 13368 | -6/Factory | Entered Garrison 13368 | -6/Garrison | Accompanied by 6 allies 13382 | -6/Garrison | Expanded RIF knowledge: Patrol Navigation 13483 | -6/Garrison | Phase Generator disabled 13572 | -6/Garrison | Triggered checkpoint 13590 | -6/Garrison | Triggered checkpoint 13614 | -6/Garrison | Triggered checkpoint 13632 | -6/Garrison | Triggered checkpoint 13636 | -6/Garrison | Discovered new exit (range 21) 13638 | -6/Garrison | Triggered checkpoint 13638 | -6/Garrison | Spotted B-75 Beast 13670 | -6/Garrison | Assimilated Beast 5a with formatsys_high 13699 | -6/Garrison | Found Relay Coupler [Proto] 13700 | -6/Garrison | Found Relay Coupler [Proto] 13706 | -6/Garrison | Found Relay Coupler [Proto] 13718 | -6/Garrison | Learned Factory security intel 13791 | -6/Garrison | Discovered new exit (range 11) 13820 | -6/Garrison | Triggered checkpoint 13869 | -6/Garrison | Discovered new exit (range 56) 13869 | -6/Garrison | Discovered new exit (range 19) 13869 | -6/Garrison | Discovered new exit (range 49) 13915 | -6/Garrison | Entered Factory 13915 | -5/Factory | Accompanied by 9 allies 13915 | -5/Factory | Evolved 2 slots: Power x1, Propulsion x1 14001 | -5/Factory | Build established: Botlord-Mutant 14079 | -5/Factory | Identified exit to Upper Caves 14215 | -5/Factory | First assault squad dispatched 14219 | -5/Factory | Repaired Broken Cld. Airjet 14263 | -5/Factory | Manually triggered Chute Trap 14263 | -5/Factory | Sucked down chute 14263 | -5/Factory | Entered Waste 14264 | -5/Waste | Spotted C-40 Crusher 14272 | -5/Waste | Spotted C-40 Crusher 14280 | -5/Waste | Warlord forces began an assault 14289 | -5/Waste | Spotted C-40 Crusher 14291 | -5/Waste | Spotted C-40 Crusher 14296 | -5/Waste | Spotted C-40 Crusher 14297 | -5/Waste | Allies destroyed C-40 Crusher 14303 | -5/Waste | Allies destroyed C-40 Crusher 14305 | -5/Waste | Allies destroyed C-40 Crusher 14307 | -5/Waste | Spotted C-40 Crusher 14308 | -5/Waste | Allies destroyed C-40 Crusher 14322 | -5/Waste | Allies destroyed C-40 Crusher 14350 | -5/Waste | 2 allies followed down the chute 14353 | -5/Waste | Allies destroyed C-40 Crusher 14361 | -5/Waste | Discovered new exit (range 12) 14394 | -5/Waste | Entered Factory 14394 | -5/Factory | Accompanied by 15 allies 14408 | -5/Factory | Hacking Suite fried by hacking feedback 14752 | -5/Factory | Discovered exit to Upper Caves (range 22) 14756 | -5/Factory | Identified exit to Garrison 14770 | -5/Factory | Entered Garrison 14770 | -5/Garrison | Accompanied by 4 allies 14808 | -5/Garrison | Triggered checkpoint 14860 | -5/Garrison | Triggered checkpoint 14894 | -5/Garrison | Expanded RIF knowledge: Threat Obfuscation 14906 | -5/Garrison | Discovered new exit (range 9) 14930 | -5/Garrison | Triggered checkpoint 14987 | -5/Garrison | Triggered checkpoint 14987 | -5/Garrison | Triggered checkpoint 15007 | -5/Garrison | Discovered new exit (range 10) 15025 | -5/Garrison | Entered Factory 15025 | -4/Factory | Evolved 2 slots: Utility x2 15131 | -4/Factory | Identified exit to Upper Caves 15131 | -4/Factory | Identified exit to Extension 15296 | -4/Factory | Fabricated Biometal Heavy Treads? 15351 | -4/Factory | Fabricated Hyp. Coil Gun (x2) 15379 | -4/Factory | Fabricated Huge Storage Unit (x1) 15695 | -4/Factory | Entered Extension 15960 | -4/Extension | Rescued a captive Derelict 16445 | -4/Extension | Warlord forces began an assault 16473 | -4/Extension | Spotted B-86 Titan 16498 | -4/Extension | Destroyed B-86 Titan 16504 | -4/Extension | Spotted B-86 Titan 16682 | -4/Extension | Rescued A7 17019 | -4/Extension | Rescued a captive Derelict 17153 | -4/Extension | Discovered new exit (range 10) 17155 | -4/Extension | Discovered new exit (range 6) 17233 | -4/Extension | Entered Cetus 17233 | -4/Cetus | Accompanied by 8 allies (A7) 17238 | -4/Cetus | Acquired a Cetus Manufacturing Module code from A7 17247 | -4/Cetus | Spotted Cetus Guard 17247 | -4/Cetus | Spotted Cetus Guard 17259 | -4/Cetus | Allies destroyed Cetus Guard 17260 | -4/Cetus | Spotted Cetus Guard 17260 | -4/Cetus | Spotted Cetus Guard 17268 | -4/Cetus | Allies destroyed Cetus Guard 17281 | -4/Cetus | Allies destroyed Cetus Guard 17283 | -4/Cetus | Allies destroyed Cetus Guard 17396 | -4/Cetus | Started Cetus Manufacturing Module 17405 | -4/Cetus | Discovered new exit (range 21) 17421 | -4/Cetus | Manufactured an Enhanced Grunt 17446 | -4/Cetus | Manufactured an Enhanced Grunt 17471 | -4/Cetus | Manufactured an Enhanced Grunt 17496 | -4/Cetus | Manufactured an Enhanced Grunt 17521 | -4/Cetus | Manufactured an Enhanced Grunt 17545 | -4/Cetus | Found Prototype Device 17545 | -4/Cetus | Identified Exp. Thermal Shield 17571 | -4/Cetus | Spotted Cetus Guard 17571 | -4/Cetus | Spotted Cetus Guard 17575 | -4/Cetus | Spotted Cetus Guard 17583 | -4/Cetus | Discovered new exit (range 21) 17583 | -4/Cetus | Spotted Cetus Guard 17585 | -4/Cetus | Allies destroyed Cetus Guard 17593 | -4/Cetus | Allies destroyed Cetus Guard 17595 | -4/Cetus | Allies destroyed Cetus Guard 17602 | -4/Cetus | Extracted ID and sensor layout for unrecognized location from A7's data core 17604 | -4/Cetus | Allies destroyed Cetus Guard 17609 | -4/Cetus | Met Revision 17 17700 | -4/Cetus | Entered Archives 17700 | -4/Archives | Accompanied by 4 allies 17780 | -4/Archives | Discovered new exit (range 19) 17838 | -4/Archives | Discovered new exit (range 15) 17946 | -4/Archives | Discovered new exit (range 20) 18345 | -4/Archives | Found Corrupted Exp. Thermal Shield 18503 | -4/Archives | Entered Hub_04(d) 18503 | -4/Hub_04(d) | Accompanied by 3 allies 18559 | -4/Hub_04(d) | Network Hub disabled 18578 | -4/Hub_04(d) | Discovered new exit (range 19) 19046 | -4/Hub_04(d) | Spotted B-86 Titan 19229 | -4/Hub_04(d) | Discovered new exit (range 17) 19338 | -4/Hub_04(d) | Build established: Bothacker-Mutant 19394 | -4/Hub_04(d) | Network Hub disabled 19399 | -4/Hub_04(d) | Spotted Lightning 19415 | -4/Hub_04(d) | Spotted Lightning 19416 | -4/Hub_04(d) | Spotted Lightning 19418 | -4/Hub_04(d) | Destroyed Lightning 19438 | -4/Hub_04(d) | Destroyed Lightning 19444 | -4/Hub_04(d) | Destroyed Lightning 19482 | -4/Hub_04(d) | Found Prototype Device 19482 | -4/Hub_04(d) | Identified Exp. EM Disruption Field 19561 | -4/Hub_04(d) | Found Prototype Device 19561 | -4/Hub_04(d) | Identified Exp. Phase Shifter 19580 | -4/Hub_04(d) | Found Prototype Energy Cannon 19599 | -4/Hub_04(d) | Found Prototype Energy Cannon 19625 | -4/Hub_04(d) | System corruption reached 10% 19632 | -4/Hub_04(d) | Spotted Lightning 19635 | -4/Hub_04(d) | Spotted Lightning 19668 | -4/Hub_04(d) | Spotted Lightning 19700 | -4/Hub_04(d) | Destroyed Lightning 19710 | -4/Hub_04(d) | Destroyed Lightning 19715 | -4/Hub_04(d) | System corruption reached 30% 19719 | -4/Hub_04(d) | Destroyed Lightning 19854 | -4/Hub_04(d) | Found Exp. EM Disruption Field 19859 | -4/Hub_04(d) | Found Prototype Processor 19943 | -4/Hub_04(d) | Entered Research 19943 | -3/Research | Evolved 2 slots: Utility x2 19945 | -3/Research | Identified EMDS (x2) 20141 | -3/Research | Build established: Scavenger-Mutant 20143 | -3/Research | Revision forces began assault on 0b10 20181 | -3/Research | Identified exit to Armory 20181 | -3/Research | Identified exit to Quarantine 20238 | -3/Research | Met up with Revision 17++ 20298 | -3/Research | Entered Quarantine 20560 | -3/Quarantine | Found Alien Artifact 21136 | -3/Quarantine | System corruption reached 10% 21272 | -3/Quarantine | Identified Exp. Targeting Computer 21272 | -3/Quarantine | Identified Subatomic Replicator 21310 | -3/Quarantine | Repaired Centrium Medium Armor Plating 21389 | -3/Quarantine | Repaired Enh. Biometal Leg 21430 | -3/Quarantine | Repaired Quantum Reactor 21470 | -3/Quarantine | Repaired Quantum Reactor 21499 | -3/Quarantine | Found Core Stripper 21542 | -3/Quarantine | Cryocooling Duct disabled 21557 | -3/Quarantine | Ambient heat levels rising (+20) 21557 | -3/Quarantine | Non-combat units ordered to evacuate 21570 | -3/Quarantine | Found Quantum Capacitor 21598 | -3/Quarantine | Spotted Alpha 7 21701 | -3/Quarantine | Central database locked down 21730 | -3/Quarantine | Discovered new exit (range 21) 21746 | -3/Quarantine | Found Phase Armor 21969 | -3/Quarantine | Found Phase Redirector 22305 | -3/Quarantine | Found Alien Energy Cannon 22376 | -3/Quarantine | Spotted Fortress 22456 | -3/Quarantine | Discovered new exit (range 5) 22460 | -3/Quarantine | Entered Section 7 22475 | -3/Section 7 | Spotted S7 Guard 22502 | -3/Section 7 | Garrison activated, responded to threat 22507 | -3/Section 7 | Destroyed S7 Guard 22535 | -3/Section 7 | Found Alien Artifact 22641 | -3/Section 7 | Repaired Enh. Biometal Leg 22696 | -3/Section 7 | Repaired Enh. Biometal Leg 22848 | -3/Section 7 | Garrison activated, responded to threat 22857 | -3/Section 7 | Found Alien Artifact 22968 | -3/Section 7 | Identified Core Regenerator 22968 | -3/Section 7 | Identified Integrated Reactor 23028 | -3/Section 7 | Repaired Imp. Weapon Shielding 23041 | -3/Section 7 | Installed Integrated Reactor, increased core energy generation (+10) 23174 | -3/Section 7 | Identified Core Cannon 23195 | -3/Section 7 | Found Integrity Redistributor 23213 | -3/Section 7 | Spotted S7 Guard 23248 | -3/Section 7 | Destroyed S7 Guard 23292 | -3/Section 7 | Found Integrated Thermoelectric Network 23328 | -3/Section 7 | Installed Integrated Thermoelectric Network, gained heat-energy exchange potential 23436 | -3/Section 7 | Spotted S7 Guard 23537 | -3/Section 7 | Destroyed S7 Guard 23563 | -3/Section 7 | Found Core Membrane 23564 | -3/Section 7 | Installed Core Membrane, gained immunity to corruption 23618 | -3/Section 7 | Spotted B-86 Titan 23828 | -3/Section 7 | Spotted Alpha 7 23888 | -3/Section 7 | Spotted S7 Guard 23915 | -3/Section 7 | Destroyed S7 Guard 23964 | -3/Section 7 | Spotted Executioner 23968 | -3/Section 7 | Spotted Executioner 23969 | -3/Section 7 | Destroyed Executioner 23969 | -3/Section 7 | Destroyed Executioner 24210 | -3/Section 7 | First assault squad dispatched 24221 | -3/Section 7 | Found Hpw. Transdimensional Reconstructor 24224 | -3/Section 7 | Found Transdimensional Reconstructor 24230 | -3/Section 7 | Used Core Regenerator, restored core integrity (+325) 24233 | -3/Section 7 | Found Hpw. Transdimensional Reconstructor 24274 | -3/Section 7 | Spotted B-99 Colossus 24316 | -3/Section 7 | Warped through subspace 24319 | -3/Section 7 | Found Alien Artifact 24363 | -3/Section 7 | Warped through subspace 24541 | -3/Section 7 | Found Alien Artifact 24541 | -3/Section 7 | Identified LRC Insulator 24541 | -3/Section 7 | Installed LRC Insulator, gained EM resistance (25) 24543 | -3/Section 7 | Found Alien Artifact 24543 | -3/Section 7 | Identified LRC Boosters 24543 | -3/Section 7 | Installed LRC Boosters, increased mass support (+10) 24694 | -3/Section 7 | Spotted Executioner 24694 | -3/Section 7 | Spotted Executioner 24709 | -3/Section 7 | Used Integrity Redistributor, redistributed integrity from core (-345) 24710 | -3/Section 7 | Core integrity fell below 50% 24714 | -3/Section 7 | Destroyed Executioner 24717 | -3/Section 7 | Destroyed Executioner 24975 | -3/Section 7 | Identified Core Reset Matrix 25247 | -3/Section 7 | Found Integrated Reactor 25247 | -3/Section 7 | Installed Integrated Reactor, increased core energy generation (+10) 25333 | -3/Section 7 | Discovered new exit (range 8) 25420 | -3/Section 7 | Found Antimissile System 25545 | -3/Section 7 | Found Prototype Processor 25609 | -3/Section 7 | Found Integrity Redistributor 25856 | -3/Section 7 | Found Alien Artifact 25856 | -3/Section 7 | Identified Spacefold Activator 25882 | -3/Section 7 | Identified exit to Garrison 25882 | -3/Section 7 | Entered Garrison 25899 | -3/Garrison | Triggered checkpoint 25972 | -3/Garrison | Destroyed 10 combat bots 25986 | -3/Garrison | Garrison Relay disabled 25995 | -3/Garrison | Garrison Relay disabled 26074 | -3/Garrison | Core integrity fell below 20% 26198 | -3/Garrison | Phase Generator disabled 26198 | -3/Garrison | Spotted B-86 Titan 26276 | -3/Garrison | Triggered checkpoint 26296 | -3/Garrison | Spotted B-86 Titan 26304 | -3/Garrison | Triggered checkpoint 26308 | -3/Garrison | Destroyed 7 combat bots 26328 | -3/Garrison | Destroyed B-86 Titan 26391 | -3/Garrison | Found Hvy. Reflective Plating 26400 | -3/Garrison | Destroyed 9 combat bots 26433 | -3/Garrison | Discovered new exit (range 10) 26437 | -3/Garrison | Found embedded Infiltrators 26439 | -3/Garrison | Triggered checkpoint 26494 | -3/Garrison | Garrison Relay disabled 26586 | -3/Garrison | Triggered checkpoint 26606 | -3/Garrison | Build established: Botlord-Mutant 26624 | -3/Garrison | Expanded RIF knowledge: Robot Detection 26656 | -3/Garrison | Garrison Relay disabled 26699 | -3/Garrison | Discovered new exit (range 12) 26707 | -3/Garrison | Discovered new exit (range 53) 26707 | -3/Garrison | Discovered new exit (range 12) 26707 | -3/Garrison | Discovered new exit (range 54) 26786 | -3/Garrison | Triggered checkpoint 26857 | -3/Garrison | Spotted B-86 Titan 26899 | -3/Garrison | Found Relay Coupler [Proto] 26902 | -3/Garrison | Found Relay Coupler [Proto] 26910 | -3/Garrison | Found Relay Coupler [Proto] 26961 | -3/Garrison | Entered Research 26961 | -2/Research | Evolved 2 slots: Utility x2 27049 | -2/Research | Found Exp. Thermal Shield 27146 | -2/Research | Repaired Hvy. Reflective Plating? 27211 | -2/Research | First assault squad dispatched 27269 | -2/Research | Repaired Centrium Medium Armor Plating 27311 | -2/Research | Identified exit to Garrison 27311 | -2/Research | Entered Garrison 27353 | -2/Garrison | Spotted B-90 Cyclops 27475 | -2/Garrison | Lost 4 parts (4u) 27512 | -2/Garrison | Destroyed B-90 Cyclops 27586 | -2/Garrison | Triggered checkpoint 27634 | -2/Garrison | Discovered new exit (range 10) 27704 | -2/Garrison | Triggered checkpoint 27744 | -2/Garrison | Discovered new exit (range 13) 27757 | -2/Garrison | Spotted B-75 Beast 27868 | -2/Garrison | Triggered checkpoint 27918 | -2/Garrison | Expanded RIF knowledge: Autoassimilate 27972 | -2/Garrison | Triggered checkpoint 28009 | -2/Garrison | Discovered new exit (range 15) 28117 | -2/Garrison | Garrison Relay disabled 28201 | -2/Garrison | Entered Access 28201 | -1/Access | Evolved 2 slots: Utility x2 28300 | -1/Access | Identified exit to Garrison 28300 | -1/Access | Entered Garrison 28517 | -1/Garrison | Spotted B-99 Colossus 28710 | -1/Garrison | Triggered checkpoint 28723 | -1/Garrison | Garrison Relay disabled 28764 | -1/Garrison | Discovered new exit (range 15) 28791 | -1/Garrison | Expanded RIF knowledge: Crosswire 28914 | -1/Garrison | Entered Access 29664 | -1/Access | First assault squad dispatched 29975 | -1/Access | Garrison activated, responded to threat 30118 | -1/Access | Spotted B-99 Colossus 30660 | -1/Access | Discovered new exit (range 3) 30667 | -1/Access | Entered Command 30667 | -1/Command | Accompanied by 2 allies 31103 | -1/Command | Spotted Combat Programmer 31165 | -1/Command | Spotted M Guard 31165 | -1/Command | Spotted Combat Programmer 31166 | -1/Command | Spotted M Guard 31249 | -1/Command | Destroyed Combat Programmer 31265 | -1/Command | Assimilated Combat Programmer with formatsys_high 31265 | -1/Command | Assimilated M Guard with formatsys_high 31267 | -1/Command | Assimilated M Guard with formatsys_high 31275 | -1/Command | Combat Programmer assimilated hostile W-44 Eye 31417 | -1/Command | First assault squad dispatched 31548 | -1/Command | Build established: Scavenger-Mutant 31561 | -1/Command | Found Unknown Protection 31561 | -1/Command | Identified Hvy. Reactive Plating 33506 | -1/Command | Destroyed M Guard 33506 | -1/Command | All MAIN.C guards destroyed 33515 | -1/Command | Found Corrupted Prototype Protection 33515 | -1/Command | Identified Hvy. Regenerative Plating 33561 | -1/Command | Found Corrupted Prototype Energy Cannon 34348 | -1/Command | Spotted Alpha 7 34384 | -1/Command | Destroyed Alpha 7 34553 | -1/Command | Build established: Mutant 34727 | -1/Command | Spotted Striker 34742 | -1/Command | Spotted Alpha 7 34744 | -1/Command | Spotted Executioner 34745 | -1/Command | Spotted Executioner 34749 | -1/Command | Destroyed Executioner 34762 | -1/Command | Spotted Striker 34770 | -1/Command | Destroyed Striker 34775 | -1/Command | Spotted Executioner 34781 | -1/Command | Spotted Executioner 34796 | -1/Command | Core integrity fell below 50% 34801 | -1/Command | Destroyed Alpha 7 34808 | -1/Command | High security lockdown imminent 34808 | -1/Command | Destroyed Striker 34819 | -1/Command | Core integrity fell below 20% 34827 | -1/Command | Destroyed by Executioner with Helical Railgun Last Messages --------------- 34812_ Core Cannon destroyed. 34812_ M-36 Artificer repairs Myomer Leg. 34814_ K-01 Serf collects debris. 34814_ Dropped Centrium Leg. 34815_ Penetrated by Slug. 34817_ Acquired 1 matter. 34818_ K-01 Serf collects debris. 34818_ Penetrated by Slug. 34818_ Slug penetrates Earth. 34819_ Penetrated by Slug. 34820_ The unstable cave ceiling collapses. 34820_ Acquired 23 matter. 34820_ Cld. Linear Gravjet destroyed. 34821_ K-01 Serf collects debris. 34823_ Acquired 16 matter. 34823_ Relay Coupler [Sentry] destroyed. 34824_ Slug penetrates G-73 Enforcer. 34824_ Penetrated by Slug. 34824_ K-01 Serf collects debris. 34827_ Penetrated by Slug. Map ----- +----------------------------------------------------+ | ????????????## ## # # # #### # ######?????? | | ????????????# ### # #?????? | | ????????????## ## # #?????? | | ????????????# # # # # #?????? | | ????????????###### ## # " #?????? | | ?????????????????# ## """ #?????? | | ?????????????????#### "" #?????? | | ????????????????????# # #?????? | | ????????????????????# #?????? | | ????????????????????#% ## %# ##########?????? | | ????????????????????# ## #?????? | | ??????? ????????#???# # # # #?????? | | ???????# ??????? ???# ### # + "" #?????? | | ######### ###??? #??# #?### # """ #?????? | | # ## #### # #### ?## #???# ; T" #?????? | | # # ##; #???# # """ #?????? | | # # # ##; #??#; "" ####### | | # # #?# ## | | # # ## ## | | % W # # ######## | | == + | | % % * ! # | | ===E% = " | | [=%| mgg %[[ % % # | | %%!%!= % i Eg%% % %# | | # [!!! # % % %[= @ # ###### # | | # ## #k% #???#%# | | ## ##### # # # #???# # | | # # # # # # # ; = #???# # | | #### # # ## #???# ###### | | ???# # # # #### #???#%#????? | | ???####### ######?# # % #???#%#????? | | ?????????###?????# # % ;??## #????? | | ????????????????# # #??#% #????? | | ???????????????? ## ####"+##???? | | ??????????????#;## # % # ##;#####![ %/#???? | | ??????????????; ! # #?# ???# = %*#???? | | ??????????????# % % #??? ??# #???? | | ????????????### % %= # ???? ?# #???? | | ????????????# " **%* # ??????#######???? | | ????????????##" % " %=[= # ???????????????? | | ?????????????#" ["" % *% #?#????????????????? | | ?????????????## """" ##?????????????????? | | ####?????????## """" #??????????????????? | | #?????????#" # #?????????????????? | | ## #?????????## ] # #^?????????????????? | | ??????????????# "" +^ ????????????????? | | ??????????????# """" + +? ???????????????? | | ??????????????# """" # +? ??????????????? | | ??????????????# "" + +?? ?????????????? | +----------------------------------------------------+ Best States ------------- Heat Dissipation 72 Energy Generation 73 Energy Capacity 1600 Matter Stores 300 Matter Capacity 300 Sight Range 22 Terrain Scan Density 10 ECM Strength 1 Armor Coverage 2250 Resistance: KI 40 Resistance: TH 30 Resistance: EM 100 Utility Shielding 66 Weapon Shielding 66 Point Defense Rating 240 Weapon Cycling 25 Phase Shifting 20 Evasion (%) 75 Targeting Accuracy 12 Core Analysis 9 Recoil Reduction 6 Particle Charging 25 Salvage Targeting 2 Offensive Hacking 50 Defensive Hacking 14 Relay Coupler Types 7 Relay Coupler Value 251 Authchip Count 3 Trap Extractor Capacity 8 Item Schematics ----------------- Huge Storage Unit | -10/Materials | Hacked Hcp. Storage Unit | -10/Mines | Hacked Plasma Cutter | -9/Materials | Hacked Imp. Utility Shielding | -8/Materials | Hacked Hyp. Coil Gun | -5/Factory | Hacked Adv. Cloaking Device | -3/Research | Hacked Exp. Force Field | -3/Quarantine | Hacked Exp. Transmission Jammer | -3/Quarantine | Hacked Hellfire Missile Launcher | -3/Quarantine | Archive Cld. Nuclear Pulse Thruster | -3/Quarantine | Archive Nanosword | -3/Quarantine | Archive Mni. Smartbomb Launcher | -3/Quarantine | Archive Cld. Antigrav System | -3/Quarantine | Archive Electron Diverter | -3/Quarantine | Archive Tactical Quantum Warhead | -3/Section 7 | Archive Exp. Cooling System | -3/Section 7 | Archive Adv. Gravity Neutralizer | -3/Section 7 | Archive Hvy. Gatling Laser | -3/Section 7 | Archive Exp. ECM Suite | -3/Section 7 | Archive Lrn. Phase Cannon | -3/Section 7 | Archive Exp. Terrain Scanner | -3/Section 7 | Archive Stealth Drone Bay | -3/Section 7 | Archive Adv. KE Penetrator | -3/Section 7 | Archive Hvy. Tesla Rifle | -3/Section 7 | Archive Thermal Defense Suite | -3/Section 7 | Archive Adv. Kinecellerator | -3/Section 7 | Archive Cld. Plasma Rifle | -3/Section 7 | Archive Robot Schematics ------------------ S-43 Plague | -3/Section 7 | Archive A-27 Freighter | -3/Section 7 | Archive K-01 Serf | -3/Section 7 | Archive A-02 Transporter | -3/Section 7 | Archive A-15 Conveyor | -3/Section 7 | Archive G-67 Veteran | -3/Section 7 | Archive L-61 Swordsman | -3/Section 7 | Archive R-10 Processor | -3/Section 7 | Archive Fabricated ------------ Plasma Cutter | x3 | -6/Factory | Authchip Biometal Heavy Treads | x2 | -4/Factory | Preloaded Hyp. Coil Gun | x2 | -4/Factory | Authchip Huge Storage Unit | x1 | -4/Factory | Authchip Alien Tech Used ----------------- Phase Redirector Integrated Reactor Integrated Thermoelectric Network Core Membrane Core Regenerator Transdimensional Reconstructor Core Stripper Core Cannon High-powered Transdimensional Reconstructor LRC Insulator LRC Boosters Integrity Redistributor Spacefold Activator Achievements -------------- Superinsulated Challenges ------------ None Game ------ Seed FlakEfficiencyExtractor Manual? 0 Play Time 05:10:06 Cumulative 695.7 hours Start 2023.03.07 @ 12:19:08 End 2023.03.07 @ 17:44:55 Sessions 1 Manual Loads 0 Difficulty Rogue Special Mode None Game No. 614 Rogue 614 Adventurer 0 Explorer 0 Win Type - Total 33 Types 14/2/9/2/0/0/4/1/1 Lore% 96 Gallery% 95 Achievement% 83 Wizard Run 0 Options --------- ASCII 0 Keyboard 0 Movement Numpad Keybinds 0 Fullscreen 1 Font 18/Smallcaps Map View 76x50 Tactical HUD 1 Map Filters NONE Filters NONE Steam 1 RUN: 589f1c98-0139-4886-8485-d184a183a6fa